Workbook

Sheet About "NUMBER PLEASE!2016"
A1: ABOUT "NUMBER PLEASE!2016"

Sheet NUMBER PLEASE!2016
A1: ACENAPHTHENE | B1: <<<< SELECT A REGULATED SUBSTANCE BY CHEMICAL NAME. | F1: SELECT A REGULATED SUBSTANCE BY CAS NUMBER (CASRN) >>>>> | K1: Please select a CASRN.
A2: CASRN >>>>>>>>>>>>>>>>>>>>>>>>>>>>>>>>>>>>>>>>>>>>>>>>>>>>>>>>>>>>>>>>>> | B2: =VLOOKUP(A1,A83:B546,2,FALSE) -> 83-32-9 | E2: =IF(ISERROR(VLOOKUP(J1,$B$608:$C$1070,2,FALSE)),"",VLOOKUP(J1,$B$608:$C$1070,2,FALSE)) ->  | F2: =IF(ISERROR(VLOOKUP(K1,$B$608:$C$1071,2,FALSE)),"",VLOOKUP(K1,$B$608:$C$1071,2,FALSE)) -> 
A4: GROUNDWATER MSCs in ug/L (except asbestos in fibers/L) | C4: BASIS
A6: RESIDENTIAL
A7: USED AQUIFER, TDS <= 2500 MG/L >>>>>>>>>>>>>>>>>>>>>>>>>>>>>>>>>>>>>>> | B7: =VLOOKUP($B$2,$B$83:$BB$600,2,FALSE) -> 2500 | C7: =VLOOKUP($B$2,$B$83:$BB$600,3,FALSE) -> G
A8: USED AQUIFER, TDS > 2500 MG/L >>>>>>>>>>>>>>>>>>>>>>>>>>>>>>>>>>>>>>>>>>>> | B8: =VLOOKUP($B$2,$B$83:$BB$600,6,FALSE) -> 3800 | C8: =VLOOKUP($B$2,$B$83:$BB$600,7,FALSE) -> S
A9: NON-USE AQUIFER >>>>>>>>>>>>>>>>>>>>>>>>>>>>>>>>>>>>>>>>>>>>>>>>>>>>>>> | B9: =VLOOKUP($B$2,$B$83:$BB$600,10,FALSE) -> 3800 | C9: =VLOOKUP($B$2,$B$83:$BB$600,11,FALSE) -> S
A11: NON-RESIDENTIAL
A12: USED AQUIFER, TDS <= 2500 MG/L >>>>>>>>>>>>>>>>>>>>>>>>>>>>>>>>>>>>>>>>>>> | B12: =VLOOKUP($B$2,$B$83:$BB$600,4,FALSE) -> 3800 | C12: =VLOOKUP($B$2,$B$83:$BB$600,5,FALSE) -> S
A13: USED AQUIFER, TDS > 2500 MG/L >>>>>>>>>>>>>>>>>>>>>>>>>>>>>>>>>>>>>>>>>>>> | B13: =VLOOKUP($B$2,$B$83:$BB$600,8,FALSE) -> 3800 | C13: =VLOOKUP($B$2,$B$83:$BB$600,9,FALSE) -> S
A14: NON-USE AQUIFER >>>>>>>>>>>>>>>>>>>>>>>>>>>>>>>>>>>>>>>>>>>>>>>>>>>>>>> | B14: =VLOOKUP($B$2,$B$83:$BB$600,12,FALSE) -> 3800 | C14: =VLOOKUP($B$2,$B$83:$BB$600,13,FALSE) -> S
A16: SMCL >>>>>>>>>>>>>>>>>>>>>>>>>>>>>>>>>>>>>>>>>>>>>>>>>>>>>>>>>>>>>>>>>> | B16: =VLOOKUP($B$2,$B$83:$BB$600,39,FALSE) -> NA
A18: BASIS CODE
A19: M = MCL (MAXIMUM CONTAMINANT LEVEL) | B19: G = INGESTION
A20: H = HAL (LIFETIME HEALTH ADVISORY LEVEL) | B20: N = INHALATION
A21: S = AQUEOUS SOLUBILITY CAP | B21: NA = NOT APPLICABLE
A23: SOIL MSCs in mg/kg | C23: BASIS
A25: RESIDENTIAL
A26: DIRECT CONTACT numeric values (0 - 15 FEET) >>>>>>>>>>>>>>>>>>>>>>>>>>>>>>>>>> | B26: =VLOOKUP($B$2,$B$83:$BB$600,14,FALSE) -> 13000 | C26: =VLOOKUP($B$2,$B$83:$BB$600,15,FALSE) -> G
A27: SOIL TO GROUNDWATER numeric values
A28: USED AQUIFERS, TDS <= 2500 MG/L
A29: 100 X GROUNDWATER MSC >>>>>>>>>>>>>>>>>>>>>>>>>>>>>>>>>>>>>>>>>>>>>>> | B29: =VLOOKUP($B$2,$B$83:$BB$600,20,FALSE) -> 250
A30: GENERIC VALUE >>>>>>>>>>>>>>>>>>>>>>>>>>>>>>>>>>>>>>>>>>>>>>>>>>>>>>> | B30: =VLOOKUP($B$2,$B$83:$BB$600,21,FALSE) -> 3100 | C30: =IF(VLOOKUP($B$2,$B$83:$BB$600,22,FALSE)=0,"NA",VLOOKUP($B$2,$B$83:$BB$600,22,FALSE)) -> E
A31: USED AQUIFERS, TDS > 2500 MG/L
A32: 100 X GROUNDWATER MSC >>>>>>>>>>>>>>>>>>>>>>>>>>>>>>>>>>>>>>>>>>>>>>> | B32: =VLOOKUP($B$2,$B$83:$BB$600,26,FALSE) -> 380
A33: GENERIC VALUE >>>>>>>>>>>>>>>>>>>>>>>>>>>>>>>>>>>>>>>>>>>>>>>>>>>>>>> | B33: =VLOOKUP($B$2,$B$83:$BB$600,27,FALSE) -> 4700 | C33: =VLOOKUP($B$2,$B$83:$BB$600,28,FALSE) -> E
A34: NON-USE AQUIFERS
A35: 100 X GROUNDWATER MSC >>>>>>>>>>>>>>>>>>>>>>>>>>>>>>>>>>>>>>>>>>>>>>> | B35: =VLOOKUP($B$2,$B$83:$BB$600,32,FALSE) -> 380
A36: GENERIC VALUE >>>>>>>>>>>>>>>>>>>>>>>>>>>>>>>>>>>>>>>>>>>>>>>>>>>>>>> | B36: =VLOOKUP($B$2,$B$83:$BB$600,33,FALSE) -> 4700 | C36: =VLOOKUP($B$2,$B$83:$BB$600,34,FALSE) -> E
A38: NON-RESIDENTIAL
A39: DIRECT CONTACT numeric values
A40: SURFACE SOIL (0 - 2 FEET) >>>>>>>>>>>>>>>>>>>>>>>>>>>>>>>>>>>>>>>>>>>>>>>> | B40: =VLOOKUP($B$2,$B$83:$BB$600,16,FALSE) -> 190000 | C40: =VLOOKUP($B$2,$B$83:$BB$600,17,FALSE) -> C
A41: SUBSURFACE SOIL (2 - 15 FEET)>>>>>>>>>>>>>>>>>>>>>>>>>>>>>>>>>>>>>>>>>>>> | B41: =VLOOKUP($B$2,$B$83:$BB$600,18,FALSE) -> 190000 | C41: =VLOOKUP($B$2,$B$83:$BB$600,19,FALSE) -> C
A42: SOIL TO GROUNDWATER numeric values
A43: USED AQUIFERS, TDS <= 2500 MG/L
A44: 100 X GROUNDWATER MSC >>>>>>>>>>>>>>>>>>>>>>>>>>>>>>>>>>>>>>>>>>>>>>> | B44: =VLOOKUP($B$2,$B$83:$BB$600,23,FALSE) -> 380
A45: GENERIC VALUE >>>>>>>>>>>>>>>>>>>>>>>>>>>>>>>>>>>>>>>>>>>>>>>>>>>>>>> | B45: =VLOOKUP($B$2,$B$83:$BB$600,24,FALSE) -> 4700 | C45: =VLOOKUP($B$2,$B$83:$BB$600,25,FALSE) -> E
A46: USED AQUIFERS, TDS > 2500 MG/L
A47: 100 X GROUNDWATER MSC >>>>>>>>>>>>>>>>>>>>>>>>>>>>>>>>>>>>>>>>>>>>>>> | B47: =VLOOKUP($B$2,$B$83:$BB$600,29,FALSE) -> 380
A48: GENERIC VALUE >>>>>>>>>>>>>>>>>>>>>>>>>>>>>>>>>>>>>>>>>>>>>>>>>>>>>>> | B48: =VLOOKUP($B$2,$B$83:$BB$600,30,FALSE) -> 4700 | C48: =VLOOKUP($B$2,$B$83:$BB$600,31,FALSE) -> E
A49: NON-USE AQUIFERS
A50: 100 X GROUNDWATER MSC >>>>>>>>>>>>>>>>>>>>>>>>>>>>>>>>>>>>>>>>>>>>>>> | B50: =VLOOKUP($B$2,$B$83:$BB$600,35,FALSE) -> 380
A51: GENERIC VALUE >>>>>>>>>>>>>>>>>>>>>>>>>>>>>>>>>>>>>>>>>>>>>>>>>>>>>>> | B51: =VLOOKUP($B$2,$B$83:$BB$600,36,FALSE) -> 4700 | C51: =VLOOKUP($B$2,$B$83:$BB$600,37,FALSE) -> E
A53: SOIL BUFFER DISTANCE (FEET) >>>>>>>>>>>>>>>>>>>>>>>>>>>>>>>>>>>>>>>>>>>>>>>> | B53: =VLOOKUP($B$2,$B$83:$BB$600,38,FALSE) -> 15
A55: BASIS CODE
A56: G = INGESTION | B56: C = CAP
A57: N = INHALATION | B57: NA = NOT APPLICABLE
A58: E = VALUE CALCULATED BY THE EQUATIONS IN SECTION 250.308(a) | B58: U = UBK Model (lead)
B59: S = SEGH Model (lead)
A61: PHYSICAL & TOXICOLOGICAL PROPERTIES
A62: RfDo (mg/kg-day) | B62: =VLOOKUP($B$2,$B$83:$BB$600,40,FALSE) -> 0.06
A63: CSFo (mg/kg-day)-1 | B63: =VLOOKUP($B$2,$B$83:$BB$600,41,FALSE) -> 0
A64: RfCi (mg/m3) | B64: =VLOOKUP($B$2,$B$83:$BB$600,42,FALSE) -> 0
A65: IUR (μg/m3)-1 | B65: =VLOOKUP($B$2,$B$83:$BB$600,43,FALSE) -> 0
A66: Koc (L/kg) | B66: =VLOOKUP($B$2,$B$83:$BB$600,44,FALSE) -> 4900
A67: VOC? | B67: =VLOOKUP($B$2,$B$83:$BB$600,45,FALSE) -> 
A68: Aqueous Solubility (mg/L) | B68: =VLOOKUP($B$2,$B$83:$BB$600,46,FALSE) -> 3.8
A69: Transfer Factor (Surface Soil - m3/kg) | B69: =VLOOKUP($B$2,$B$83:$BB$600,47,FALSE) -> 
A70: Transfer Factor (Sub-Surface Soil - m3/kg) | B70: =VLOOKUP($B$2,$B$83:$BB$600,48,FALSE) -> 
A71: Organic Liquid? | B71: =VLOOKUP($B$2,$B$83:$BB$600,49,FALSE) -> 
A72: Boiling Point (oC) | B72: =VLOOKUP($B$2,$B$83:$BB$600,50,FALSE) -> 279
A73: Degradation Coefficient (Attenuation Lambda, K) (yr-1) | B73: =VLOOKUP($B$2,$B$83:$BB$600,51,FALSE) -> 1.24
A74: Kd (L/kg) | B74: =VLOOKUP($B$2,$B$83:$BB$600,52,FALSE) -> 
A75: Constituent of Potential Ecological Concern (CPEC)? | B75: =VLOOKUP($B$2,$B$83:$BB$600,53,FALSE) -> YES
A76: CPECs that are not on the SHS List | B76: methyl mercury, mirex
C80: Used Aquifer | E80: Used Aquifer | G80: Used Aquifer | I80: Used Aquifer | K80: Non-Use Aquifer | M80: Non-Use Aquifer | O80: Soil | Q80: Surface Soil | S80: Sub-Surface Soil | U80: Used Aquifer S-GW | X80: Used Aquifer S-GW | AA80: Used Aquifer S-GW | AD80: Used Aquifer S-GW | AG80: Non-Use Aquifer S-GW | AJ80: Non-Use Aquifer S-GW | AM80: S-GW | AO80: RfDo (mg/kg-d) | AP80: CSFo (mg/kg-d)-1 | AQ80: RfCi (mg/m3) | AR80: IUR (μg/m3)-1 | AS80: Koc | AT80: VOC? | AU80: Aqueous Solubility (mg/L) | AV80: TF Vol from Surface Soil | AW80: TF Vol from Subsurface Soil | AX80: Organic Liquid | AY80: Boiling Point (degrees C) | AZ80: Degradation Coefficient (K)(yr-1) | BA80: Kd | BB80: CPEC
C81: TDS <=2500 mg/L | E81: TDS <=2500 mg/L | G81: TDS >2500 mg/L | I81: TDS >2500 mg/L | O81: Direct Contact | Q81: Direct Contact | S81: Direct Contact | U81: TDS <= 2500mg/L Residential | X81: TDS <= 2500mg/L Non-Residential | AA81: TDS > 2500mg/L Residential | AD81: TDS > 2500mg/L Non-Residential | AG81: Residential | AJ81: Non- Residential | AM81: Buffer Distance | AN81: SMCL | AP81: CSFo | AQ81: RfDi | AR81: CSFi | AU81: Aqueous Sol | AV81: TF Vol from | AW81: TF Vol from | AX81: Organic | AY81: Boiling Point | AZ81: Attenuation
A82: REGULATED SUBSTANCE | B82: CASRN | C82: Residential (ug/L) | E82: Non-Residential (ug/L) | G82: Residential (ug/L) | I82: Non-Residential (ug/L) | K82: Residential (ug/L) | M82: Non-Residential (ug/L) | O82: Residential (mg/kg) | Q82: Non-Residential (mg/kg) | S82: Non-Residential (mg/kg) | U82: 100xGWMSC (mg/kg) | V82: Generic Value (mg/kg) | X82: 100xGWMSC (mg/kg) | Y82: Generic Value (mg/kg) | AA82: 100xGWMSC (mg/kg) | AB82: Generic Value (mg/kg) | AD82: 100xGWMSC (mg/kg) | AE82: Generic Value (mg/kg) | AG82: 100xGWMSC (mg/kg) | AH82: Generic Value (mg/kg) | AJ82: 100xGWMSC (mg/kg) | AK82: Generic Value (mg/kg) | AM82: (feet) | AN82: (ug/L) | AP82: mg/kg/day-1 | AQ82: mg/kg/day | AR82: mg/kg/day-1 | AS82: Koc | AT82: VOC | AU82: (mg/L) | AV82: Surface Soil | AW82: Surface Soil | AX82: Liquid | AY82: (degrees C) | AZ82: lambda | BA82: Kd | BB82: CPEC
A83: ACENAPHTHENE | B83: 83-32-9 | C83: 2500 | D83: G | E83: 3800 | F83: S | G83: 3800 | H83: S | I83: 3800 | J83: S | K83: 3800 | L83: S | M83: 3800 | N83: S | O83: 13000 | P83: G | Q83: 190000 | R83: C | S83: 190000 | T83: C | U83: 250 | V83: 3100 | W83: E | X83: 380 | Y83: 4700 | Z83: E | AA83: 380 | AB83: 4700 | AC83: E | AD83: 380 | AE83: 4700 | AF83: E | AG83: 380 | AH83: 4700 | AI83: E | AJ83: 380 | AK83: 4700 | AL83: E | AM83: 15 | AN83: NA | AO83: 0.06 | AP83: 0 | AQ83: 0 | AR83: 0 | AS83: 4900 | AU83: 3.8 | AY83: 279 | AZ83: 1.24 | BB83: YES
A84: ACENAPHTHYLENE | B84: 208-96-8 | C84: 2500 | D84: G | E84: 7000 | F84: G | G84: 16000 | H84: S | I84: 16000 | J84: S | K84: 16000 | L84: S | M84: 16000 | N84: S | O84: 13000 | P84: G | Q84: 190000 | R84: C | S84: 190000 | T84: C | U84: 250 | V84: 2800 | W84: E | X84: 700 | Y84: 8000 | Z84: E | AA84: 1600 | AB84: 18000 | AC84: E | AD84: 1600 | AE84: 18000 | AF84: E | AG84: 1600 | AH84: 18000 | AI84: E | AJ84: 1600 | AK84: 18000 | AL84: E | AM84: 15 | AN84: NA | AO84: 0.06 | AP84: 0 | AQ84: 0 | AR84: 0 | AS84: 4500 | AU84: 16.1 | AY84: 280 | AZ84: 2.11 | BB84: YES
A85: ACEPHATE | B85: 30560-19-1 | C85: 84 | D85: G | E85: 390 | F85: G | G85: 8400 | H85: G | I85: 39000 | J85: G | K85: 84 | L85: G | M85: 390 | N85: G | O85: 880 | P85: G | Q85: 10000 | R85: G | S85: 190000 | T85: C | U85: 8.4 | V85: 1 | W85: E | X85: 39 | Y85: 4.6 | Z85: E | AA85: 840 | AB85: 100 | AC85: E | AD85: 3900 | AE85: 460 | AF85: E | AG85: 8.4 | AH85: 1 | AI85: E | AJ85: 39 | AK85: 4.6 | AL85: E | AM85: NA | AN85: NA | AO85: 0.004 | AP85: 0.0087 | AQ85: 0 | AR85: 0 | AS85: 3 | AU85: 818000 | AY85: 340 | AZ85: 0 | BB85: NO
A86: ACETALDEHYDE | B86: 75-07-0 | C86: 19 | D86: N | E86: 79 | F86: N | G86: 1900 | H86: N | I86: 7900 | J86: N | K86: 19 | L86: N | M86: 79 | N86: N | O86: 170 | P86: N | Q86: 720 | R86: N | S86: 830 | T86: N | U86: 1.9 | V86: 0.23 | W86: E | X86: 7.9 | Y86: 0.96 | Z86: E | AA86: 190 | AB86: 23 | AC86: E | AD86: 790 | AE86: 96 | AF86: E | AG86: 1.9 | AH86: 0.23 | AI86: E | AJ86: 7.9 | AK86: 0.96 | AL86: E | AM86: NA | AN86: NA | AO86: 0 | AP86: 0 | AQ86: 0.009 | AR86: 2.2e-06 | AS86: 4.1 | AT86: X | AU86: 1000000 | AV86: 13100 | AW86: 15100 | AX86: X | AY86: 20.4 | AZ86: 0 | BB86: NO
A87: ACETIC ACID | B87: 64-19-7 | C87: NA | D87: NA | E87: NA | F87: NA | G87: NA | H87: NA | I87: NA | J87: NA | K87: NA | L87: NA | M87: NA | N87: NA | O87: NA | P87: NA | Q87: NA | R87: NA | S87: NA | T87: NA | U87: NA | V87: NA | W87: NA | X87: NA | Y87: NA | Z87: NA | AA87: NA | AB87: NA | AC87: NA | AD87: NA | AE87: NA | AF87: NA | AG87: NA | AH87: NA | AI87: NA | AJ87: NA | AK87: NA | AL87: NA | AM87: NA | AN87: NA | AO87: NA | AP87: NA | AQ87: NA | AR87: NA | AS87: NA | AT87: NA | AU87: NA | AV87: NA | AW87: NA | AX87: NA | AY87: NA | AZ87: NA | BA87: NA | BB87: NO
A88: ACETIC ANHYDRIDE | B88: 108-24-7 | C88: NA | D88: NA | E88: NA | F88: NA | G88: NA | H88: NA | I88: NA | J88: NA | K88: NA | L88: NA | M88: NA | N88: NA | O88: NA | P88: NA | Q88: NA | R88: NA | S88: NA | T88: NA | U88: NA | V88: NA | W88: NA | X88: NA | Y88: NA | Z88: NA | AA88: NA | AB88: NA | AC88: NA | AD88: NA | AE88: NA | AF88: NA | AG88: NA | AH88: NA | AI88: NA | AJ88: NA | AK88: NA | AL88: NA | AM88: NA | AN88: NA | AO88: NA | AP88: NA | AQ88: NA | AR88: NA | AS88: NA | AT88: NA | AU88: NA | AV88: NA | AW88: NA | AX88: NA | AY88: NA | AZ88: NA | BA88: NA | BB88: NO
A89: ACETONE | B89: 67-64-1 | C89: 38000 | D89: G | E89: 110000 | F89: G | G89: 3800000 | H89: G | I89: 11000000 | J89: G | K89: 380000 | L89: G | M89: 1100000 | N89: G | O89: 10000 | P89: C | Q89: 10000 | R89: C | S89: 10000 | T89: C | U89: 3800 | V89: 430 | W89: E | X89: 10000 | Y89: 1200 | Z89: E | AA89: 10000 | AB89: 10000 | AC89: C | AD89: 10000 | AE89: 10000 | AF89: C | AG89: 10000 | AH89: 4300 | AI89: E | AJ89: 10000 | AK89: 10000 | AL89: C | AM89: NA | AN89: NA | AO89: 0.9 | AP89: 0 | AQ89: 31 | AR89: 0 | AS89: 0.31 | AT89: X | AU89: 1000000 | AV89: 13100 | AW89: 15000 | AX89: X | AY89: 56.07 | AZ89: 18.07 | BB89: NO
A90: ACETONITRILE | B90: 75-05-8 | C90: 130 | D90: N | E90: 530 | F90: N | G90: 13000 | H90: N | I90: 53000 | J90: N | K90: 1300 | L90: N | M90: 5300 | N90: N | O90: 1100 | P90: N | Q90: 4800 | R90: N | S90: 5500 | T90: N | U90: 13 | V90: 1.5 | W90: E | X90: 53 | Y90: 6 | Z90: E | AA90: 1300 | AB90: 150 | AC90: E | AD90: 5300 | AE90: 600 | AF90: E | AG90: 130 | AH90: 15 | AI90: E | AJ90: 530 | AK90: 60 | AL90: E | AM90: NA | AN90: NA | AO90: 0 | AP90: 0 | AQ90: 0.06 | AR90: 0 | AS90: 0.5 | AT90: X | AU90: 1000000 | AV90: 13100 | AW90: 15000 | AX90: X | AY90: 81.6 | AZ90: 4.5 | BB90: NO
A91: ACETOPHENONE | B91: 98-86-2 | C91: 4200 | D91: G | E91: 12000 | F91: G | G91: 420000 | H91: G | I91: 1200000 | J91: G | K91: 4200 | L91: G | M91: 12000 | N91: G | O91: 10000 | P91: C | Q91: 10000 | R91: C | S91: 10000 | T91: C | U91: 420 | V91: 230 | W91: E | X91: 1200 | Y91: 640 | Z91: E | AA91: 10000 | AB91: 10000 | AC91: C | AD91: 10000 | AE91: 10000 | AF91: C | AG91: 420 | AH91: 230 | AI91: E | AJ91: 1200 | AK91: 640 | AL91: E | AM91: NA | AN91: NA | AO91: 0.1 | AP91: 0 | AQ91: 0 | AR91: 0 | AS91: 170 | AU91: 5500 | AX91: X | AY91: 202.6 | AZ91: 0 | BB91: NO
A92: ACETYLAMINOFLUORENE, 2- (2AAF) | B92: 53-96-3 | C92: 0.19 | D92: G | E92: 0.89 | F92: G | G92: 19 | H92: G | I92: 89 | J92: G | K92: 190 | L92: G | M92: 890 | N92: G | O92: 4.9 | P92: G | Q92: 24 | R92: G | S92: 190000 | T92: C | U92: 0.019 | V92: 0.08 | W92: E | X92: 0.089 | Y92: 0.37 | Z92: E | AA92: 1.9 | AB92: 8 | AC92: E | AD92: 8.9 | AE92: 37 | AF92: E | AG92: 19 | AH92: 78 | AI92: E | AJ92: 89 | AK92: 370 | AL92: E | AM92: 20 | AN92: NA | AO92: 0 | AP92: 3.8 | AQ92: 0 | AR92: 0.0013 | AS92: 1600 | AU92: 10.13 | AY92: 303 | AZ92: 0.69 | BB92: YES
A93: ACROLEIN | B93: 107-02-8 | C93: 0.042 | D93: N | E93: 0.18 | F93: N | G93: 4.2 | H93: N | I93: 18 | J93: N | K93: 0.42 | L93: N | M93: 1.8 | N93: N | O93: 0.38 | P93: N | Q93: 1.6 | R93: N | S93: 1.8 | T93: N | U93: 0.0042 | V93: 0.00047 | W93: E | X93: 0.018 | Y93: 0.002 | Z93: E | AA93: 0.42 | AB93: 0.047 | AC93: E | AD93: 1.8 | AE93: 0.2 | AF93: E | AG93: 0.042 | AH93: 0.0047 | AI93: E | AJ93: 0.18 | AK93: 0.02 | AL93: E | AM93: NA | AN93: NA | AO93: 0.0005 | AP93: 0 | AQ93: 2e-05 | AR93: 0 | AS93: 0.56 | AT93: X | AU93: 208000 | AV93: 13100 | AW93: 15100 | AX93: X | AY93: 52.69 | AZ93: 4.5 | BB93: NO
A94: ACRYLAMIDE | B94: 79-06-1 | C94: 0.19 | D94: N | E94: 2.5 | F94: N | G94: 19 | H94: N | I94: 250 | J94: N | K94: 0.19 | L94: N | M94: 2.5 | N94: N | O94: 1.7 | P94: N | Q94: 22 | R94: N | S94: 26 | T94: N | U94: 0.019 | V94: 0.0033 | W94: E | X94: 0.25 | Y94: 0.043 | Z94: E | AA94: 1.9 | AB94: 0.33 | AC94: E | AD94: 25 | AE94: 4.3 | AF94: E | AG94: 0.019 | AH94: 0.0033 | AI94: E | AJ94: 0.25 | AK94: 0.043 | AL94: E | AM94: NA | AN94: NA | AO94: 0.002 | AP94: 0.5 | AQ94: 0.006 | AR94: 0.0001 | AS94: 25 | AT94: X | AU94: 2151000 | AV94: 13000 | AW94: 15000 | AY94: 192.6 | AZ94: 0 | BB94: NO
A95: ACRYLIC ACID | B95: 79-10-7 | C95: 2.1 | D95: N | E95: 8.8 | F95: N | G95: 210 | H95: N | I95: 880 | J95: N | K95: 210 | L95: N | M95: 880 | N95: N | O95: 19 | P95: N | Q95: 79 | R95: N | S95: 91 | T95: N | U95: 0.21 | V95: 0.039 | W95: E | X95: 0.88 | Y95: 0.16 | Z95: E | AA95: 21 | AB95: 3.9 | AC95: E | AD95: 88 | AE95: 16 | AF95: E | AG95: 21 | AH95: 3.9 | AI95: E | AJ95: 88 | AK95: 16 | AL95: E | AM95: NA | AN95: NA | AO95: 0.5 | AP95: 0 | AQ95: 0.001 | AR95: 0 | AS95: 29 | AT95: X | AU95: 1000000 | AV95: 13000 | AW95: 14900 | AX95: X | AY95: 141.2 | AZ95: 1.39 | BB95: NO
A96: ACRYLONITRILE | B96: 107-13-1 | C96: 0.72 | D96: N | E96: 3.7 | F96: N | G96: 72 | H96: N | I96: 370 | J96: N | K96: 72 | L96: N | M96: 370 | N96: N | O96: 6.6 | P96: N | Q96: 33 | R96: N | S96: 38 | T96: N | U96: 0.072 | V96: 0.01 | W96: E | X96: 0.37 | Y96: 0.051 | Z96: E | AA96: 7.2 | AB96: 1 | AC96: E | AD96: 37 | AE96: 5.1 | AF96: E | AG96: 7.2 | AH96: 1 | AI96: E | AJ96: 37 | AK96: 5.1 | AL96: E | AM96: NA | AN96: NA | AO96: 0.04 | AP96: 0.54 | AQ96: 0.002 | AR96: 6.8e-05 | AS96: 11 | AT96: X | AU96: 73500 | AV96: 13100 | AW96: 15100 | AX96: X | AY96: 77.3 | AZ96: 5.5 | BB96: NO
A97: ALACHLOR | B97: 15972-60-8 | C97: 2 | D97: M | E97: 2 | F97: M | G97: 200 | H97: M | I97: 200 | J97: M | K97: 2 | L97: M | M97: 2 | N97: M | O97: 330 | P97: G | Q97: 1600 | R97: G | S97: 190000 | T97: C | U97: 0.2 | V97: 0.077 | W97: E | X97: 0.2 | Y97: 0.077 | Z97: E | AA97: 20 | AB97: 7.7 | AC97: E | AD97: 20 | AE97: 7.7 | AF97: E | AG97: 0.2 | AH97: 0.077 | AI97: E | AJ97: 0.2 | AK97: 0.077 | AL97: E | AM97: NA | AN97: NA | AO97: 0.01 | AP97: 0.056 | AQ97: 0 | AR97: 0 | AS97: 110 | AU97: 140 | AY97: 378 | AZ97: 0 | BB97: NO
A98: ALDICARB | B98: 116-06-3 | C98: 3 | D98: M | E98: 3 | F98: M | G98: 300 | H98: M | I98: 300 | J98: M | K98: 3000 | L98: M | M98: 3000 | N98: M | O98: 220 | P98: G | Q98: 3200 | R98: G | S98: 190000 | T98: C | U98: 0.3 | V98: 0.05 | W98: E | X98: 0.3 | Y98: 0.05 | Z98: E | AA98: 30 | AB98: 5 | AC98: E | AD98: 30 | AE98: 5 | AF98: E | AG98: 300 | AH98: 50 | AI98: E | AJ98: 300 | AK98: 50 | AL98: E | AM98: NA | AN98: NA | AO98: 0.001 | AP98: 0 | AQ98: 0 | AR98: 0 | AS98: 22 | AU98: 6000 | AY98: 287 | AZ98: 0.4 | BB98: NO
A99: ALDICARB SULFONE | B99: 1646-88-4 | C99: 2 | D99: M | E99: 2 | F99: M | G99: 200 | H99: M | I99: 200 | J99: M | K99: 2 | L99: M | M99: 2 | N99: M | O99: 220 | P99: G | Q99: 3200 | R99: G | S99: 190000 | T99: C | U99: 0.2 | V99: 0.027 | W99: E | X99: 0.2 | Y99: 0.027 | Z99: E | AA99: 20 | AB99: 2.7 | AC99: E | AD99: 20 | AE99: 2.7 | AF99: E | AG99: 0.2 | AH99: 0.027 | AI99: E | AJ99: 0.2 | AK99: 0.027 | AL99: E | AM99: NA | AN99: NA | AO99: 0.001 | AP99: 0 | AQ99: 0 | AR99: 0 | AS99: 10 | AU99: 8000 | AY99: 317 | AZ99: 0 | BB99: NO
A100: ALDICARB SULFOXIDE | B100: 1646-87-3 | C100: 4 | D100: M | E100: 4 | F100: M | G100: 400 | H100: M | I100: 400 | J100: M | K100: 4 | L100: M | M100: 4 | N100: M | O100: 220 | P100: G | Q100: 3200 | R100: G | S100: 190000 | T100: C | U100: 0.4 | V100: 0.045 | W100: E | X100: 0.4 | Y100: 0.045 | Z100: E | AA100: 40 | AB100: 4.5 | AC100: E | AD100: 40 | AE100: 4.5 | AF100: E | AG100: 0.4 | AH100: 0.045 | AI100: E | AJ100: 0.4 | AK100: 0.045 | AL100: E | AM100: NA | AN100: NA | AO100: 0.001 | AP100: 0 | AQ100: 0 | AR100: 0 | AS100: 0.22 | AU100: 330000 | AY100: 307 | AZ100: 0 | BB100: NO
A101: ALDRIN | B101: 309-00-2 | C101: 0.43 | D101: G | E101: 0.2 | F101: G | G101: 4.3 | H101: G | I101: 20 | J101: G | K101: 20 | L101: S | M101: 20 | N101: S | O101: 1.1 | P101: G | Q101: 5.4 | R101: G | S101: 190000 | T101: C | U101: 0.0043 | V101: 0.52 | W101: E | X101: 0.02 | Y101: 2.4 | Z101: E | AA101: 0.43 | AB101: 52 | AC101: E | AD101: 2 | AE101: 240 | AF101: E | AG101: 2 | AH101: 240 | AI101: E | AJ101: 2 | AK101: 240 | AL101: E | AM101: 10 | AN101: NA | AO101: 3e-05 | AP101: 17 | AQ101: 0 | AR101: 0.0049 | AS101: 48000 | AU101: 0.02 | AY101: 330 | AZ101: 0.22 | BB101: YES
A102: ALLYL ALCOHOL | B102: 107-18-6 | C102: 0.21 | D102: N | E102: 0.88 | F102: N | G102: 21 | H102: N | I102: 88 | J102: N | K102: 21 | L102: N | M102: 88 | N102: N | O102: 1.9 | P102: N | Q102: 8 | R102: N | S102: 9.1 | T102: N | U102: 0.021 | V102: 0.0025 | W102: E | X102: 0.088 | Y102: 0.01 | Z102: E | AA102: 2.1 | AB102: 0.25 | AC102: E | AD102: 9 | AE102: 1 | AF102: E | AG102: 2.1 | AH102: 0.25 | AI102: E | AJ102: 9 | AK102: 1 | AL102: E | AM102: NA | AN102: NA | AO102: 0.005 | AP102: 0 | AQ102: 0.0001 | AR102: 0 | AS102: 3.2 | AT102: X | AU102: 1000000 | AV102: 13100 | AW102: 15000 | AX102: X | AY102: 97 | AZ102: 18.07 | BB102: NO
A103: ALUMINUM | B103: 7429-90-5 | C103: NA | D103: NA | E103: NA | F103: NA | G103: NA | H103: NA | I103: NA | J103: NA | K103: NA | L103: NA | M103: NA | N103: NA | O103: 190000 | P103: C | Q103: 190000 | R103: C | S103: 190000 | T103: C | U103: NA | V103: NA | W103: NA | X103: NA | Y103: NA | Z103: NA | AA103: NA | AB103: NA | AC103: NA | AD103: NA | AE103: NA | AF103: NA | AG103: NA | AH103: NA | AI103: NA | AJ103: NA | AK103: NA | AL103: NA | AM103: NA | AN103: 200 | AO103: 1 | AP103: 0 | AQ103: 0.005 | AR103: 0 | AS103: 0 | AU103: 0 | BA103: 9.9 | BB103: NO
A104: AMETRYN | B104: 834-12-8 | C104: 60 | D104: H | E104: 60 | F104: H | G104: 6000 | H104: H | I104: 6000 | J104: H | K104: 60 | L104: H | M104: 60 | N104: H | O104: 2000 | P104: G | Q104: 29000 | R104: G | S104: 190000 | T104: C | U104: 6 | V104: 6.5 | W104: E | X104: 6 | Y104: 6.5 | Z104: E | AA104: 600 | AB104: 650 | AC104: E | AD104: 600 | AE104: 650 | AF104: E | AG104: 6 | AH104: 6.5 | AI104: E | AJ104: 6 | AK104: 6.5 | AL104: E | AM104: NA | AN104: NA | AO104: 0.009 | AP104: 0 | AQ104: 0 | AR104: 0 | AS104: 389 | AU104: 185 | AY104: 345 | AZ104: 0 | BB104: NO
A105: AMINOBIPHENYL, 4- | B105: 92-67-1 | C105: 0.035 | D105: G | E105: 0.16 | F105: G | G105: 3.5 | H105: G | I105: 16 | J105: G | K105: 35 | L105: G | M105: 160 | N105: G | O105: 0.89 | P105: G | Q105: 4.3 | R105: G | S105: 190000 | T105: C | U105: 0.0035 | V105: 0.0014 | W105: E | X105: 0.016 | Y105: 0.0062 | Z105: E | AA105: 0.35 | AB105: 0.14 | AC105: E | AD105: 1.6 | AE105: 0.62 | AF105: E | AG105: 3.5 | AH105: 1.4 | AI105: E | AJ105: 16 | AK105: 6.2 | AL105: E | AM105: NA | AN105: NA | AO105: 0 | AP105: 21 | AQ105: 0 | AR105: 0.006 | AS105: 110 | AU105: 1200 | AY105: 302 | AZ105: 18.07 | BB105: NO
A106: AMITROLE | B106: 61-82-5 | C106: 0.78 | D106: G | E106: 3.6 | F106: G | G106: 78 | H106: G | I106: 360 | J106: G | K106: 780 | L106: G | M106: 3600 | N106: G | O106: 20 | P106: G | Q106: 97 | R106: G | S106: 190000 | T106: C | U106: 0.078 | V106: 0.032 | W106: E | X106: 0.36 | Y106: 0.15 | Z106: E | AA106: 8 | AB106: 3.2 | AC106: E | AD106: 36 | AE106: 15 | AF106: E | AG106: 78 | AH106: 32 | AI106: E | AJ106: 360 | AK106: 150 | AL106: E | AM106: NA | AN106: NA | AO106: 0 | AP106: 0.94 | AQ106: 0 | AR106: 0.00027 | AS106: 120 | AU106: 280000 | AY106: 258 | AZ106: 0.69 | BB106: NO
A107: AMMONIA | B107: 7664-41-7 | C107: 30000 | D107: H | E107: 30000 | F107: H | G107: 3000000 | H107: H | I107: 3000000 | J107: H | K107: 30000 | L107: H | M107: 30000 | N107: H | O107: 1900 | P107: N | Q107: 8000 | R107: N | S107: 9100 | T107: N | U107: 3000 | V107: 360 | W107: E | X107: 3000 | Y107: 360 | Z107: E | AA107: 10000 | AB107: 10000 | AC107: C | AD107: 10000 | AE107: 10000 | AF107: C | AG107: 3000 | AH107: 360 | AI107: E | AJ107: 3000 | AK107: 360 | AL107: E | AM107: NA | AN107: NA | AO107: 0.97 | AP107: 0 | AQ107: 0.1 | AR107: 0 | AS107: 3.1 | AT107: X | AU107: 310000 | AV107: 13100 | AW107: 15000 | AX107: X | AY107: -33.3 | AZ107: 0 | BB107: NO
A108: AMMONIUM SULFAMATE | B108: 7773-06-0 | C108: 2000 | D108: H | E108: 2000 | F108: H | G108: 200000 | H108: H | I108: 200000 | J108: H | K108: 2000 | L108: H | M108: 2000 | N108: H | O108: 44000 | P108: G | Q108: 190000 | R108: C | S108: 190000 | T108: C | U108: 200 | V108: 24 | W108: E | X108: 200 | Y108: 24 | Z108: E | AA108: 20000 | AB108: 2400 | AC108: E | AD108: 20000 | AE108: 2400 | AF108: E | AG108: 200 | AH108: 24 | AI108: E | AJ108: 200 | AK108: 24 | AL108: E | AM108: NA | AN108: NA | AO108: 0.2 | AP108: 0 | AQ108: 0 | AR108: 0 | AS108: 2.7 | AU108: 2160000 | AY108: 603 | AZ108: 0 | BB108: NO
A109: AMYL ACETATE, N- | B109: 628-63-7 | C109: NA | D109: NA | E109: NA | F109: NA | G109: NA | H109: NA | I109: NA | J109: NA | K109: NA | L109: NA | M109: NA | N109: NA | O109: NA | P109: NA | Q109: NA | R109: NA | S109: NA | T109: NA | U109: NA | V109: NA | W109: NA | X109: NA | Y109: NA | Z109: NA | AA109: NA | AB109: NA | AC109: NA | AD109: NA | AE109: NA | AF109: NA | AG109: NA | AH109: NA | AI109: NA | AJ109: NA | AK109: NA | AL109: NA | AM109: NA | AN109: NA | AO109: NA | AP109: NA | AQ109: NA | AR109: NA | AS109: NA | AT109: NA | AU109: NA | AV109: NA | AW109: NA | AX109: NA | AY109: NA | AZ109: NA | BA109: NA | BB109: NO
A110: AMYL ACETATE, SEC- | B110: 626-38-0 | C110: NA | D110: NA | E110: NA | F110: NA | G110: NA | H110: NA | I110: NA | J110: NA | K110: NA | L110: NA | M110: NA | N110: NA | O110: NA | P110: NA | Q110: NA | R110: NA | S110: NA | T110: NA | U110: NA | V110: NA | W110: NA | X110: NA | Y110: NA | Z110: NA | AA110: NA | AB110: NA | AC110: NA | AD110: NA | AE110: NA | AF110: NA | AG110: NA | AH110: NA | AI110: NA | AJ110: NA | AK110: NA | AL110: NA | AM110: NA | AN110: NA | AO110: NA | AP110: NA | AQ110: NA | AR110: NA | AS110: NA | AT110: NA | AU110: NA | AV110: NA | AW110: NA | AX110: NA | AY110: NA | AZ110: NA | BA110: NA | BB110: NO
A111: ANILINE | B111: 62-53-3 | C111: 2.1 | D111: N | E111: 8.8 | F111: N | G111: 210 | H111: N | I111: 880 | J111: N | K111: 2.1 | L111: N | M111: 8.8 | N111: N | O111: 19 | P111: N | Q111: 79 | R111: N | S111: 91 | T111: N | U111: 0.21 | V111: 0.12 | W111: E | X111: 0.88 | Y111: 0.52 | Z111: E | AA111: 21 | AB111: 12 | AC111: E | AD111: 88 | AE111: 52 | AF111: E | AG111: 0.21 | AH111: 0.12 | AI111: E | AJ111: 0.88 | AK111: 0.52 | AL111: E | AM111: NA | AN111: NA | AO111: 0.007 | AP111: 0.0057 | AQ111: 0.001 | AR111: 1.6e-06 | AS111: 190 | AT111: X | AU111: 33800 | AV111: 13000 | AW111: 14900 | AX111: X | AY111: 184.4 | AZ111: 0 | BB111: NO
A112: ANTHRACENE | B112: 120-12-7 | C112: 66 | D112: S | E112: 66 | F112: S | G112: 66 | H112: S | I112: 66 | J112: S | K112: 66 | L112: S | M112: 66 | N112: S | O112: 66000 | P112: G | Q112: 190000 | R112: C | S112: 190000 | T112: C | U112: 6.6 | V112: 350 | W112: E | X112: 6.6 | Y112: 350 | Z112: E | AA112: 6.6 | AB112: 350 | AC112: E | AD112: 6.6 | AE112: 350 | AF112: E | AG112: 6.6 | AH112: 350 | AI112: E | AJ112: 6.6 | AK112: 350 | AL112: E | AM112: 10 | AN112: NA | AO112: 0.3 | AP112: 0 | AQ112: 0 | AR112: 0 | AS112: 21000 | AU112: 0.066 | AY112: 340 | AZ112: 0.28 | BB112: YES
A113: ANTIMONY | B113: 7440-36-0 | C113: 6 | D113: M | E113: 6 | F113: M | G113: 600 | H113: M | I113: 600 | J113: M | K113: 6000 | L113: M | M113: 6000 | N113: M | O113: 88 | P113: G | Q113: 1300 | R113: G | S113: 190000 | T113: C | U113: 0.6 | V113: 27 | W113: 0 | X113: 0.6 | Y113: 27 | Z113: 0 | AA113: 60 | AB113: 2700 | AC113: 0 | AD113: 60 | AE113: 2700 | AF113: 0 | AG113: 600 | AH113: 27000 | AI113: 0 | AJ113: 600 | AK113: 27000 | AL113: 0 | AM113: 15 | AN113: NA | AO113: 0.0004 | AP113: 0 | AQ113: 0 | AR113: 0 | AS113: 0 | AU113: 0 | BA113: 45 | BB113: NO
A114: ANTU (ALPHA-NAPHTHYLTHIOUREA) | B114: 86-88-4 | C114: NA | D114: NA | E114: NA | F114: NA | G114: NA | H114: NA | I114: NA | J114: NA | K114: NA | L114: NA | M114: NA | N114: NA | O114: NA | P114: NA | Q114: NA | R114: NA | S114: NA | T114: NA | U114: NA | V114: NA | W114: NA | X114: NA | Y114: NA | Z114: NA | AA114: NA | AB114: NA | AC114: NA | AD114: NA | AE114: NA | AF114: NA | AG114: NA | AH114: NA | AI114: NA | AJ114: NA | AK114: NA | AL114: NA | AM114: NA | AN114: NA | AO114: NA | AP114: NA | AQ114: NA | AR114: NA | AS114: NA | AT114: NA | AU114: NA | AV114: NA | AW114: NA | AX114: NA | AY114: NA | AZ114: NA | BA114: NA | BB114: NO
A115: ARSENIC | B115: 7440-38-2 | C115: 10 | D115: M | E115: 10 | F115: M | G115: 1000 | H115: M | I115: 1000 | J115: M | K115: 10000 | L115: M | M115: 10000 | N115: M | O115: 12 | P115: G | Q115: 61 | R115: G | S115: 190000 | T115: C | U115: 1 | V115: 29 | W115: 0 | X115: 1 | Y115: 29 | Z115: 0 | AA115: 100 | AB115: 2900 | AC115: 0 | AD115: 100 | AE115: 2900 | AF115: 0 | AG115: 1000 | AH115: 29000 | AI115: 0 | AJ115: 1000 | AK115: 29000 | AL115: 0 | AM115: 15 | AN115: NA | AO115: 0.0003 | AP115: 1.5 | AQ115: 1.5e-05 | AR115: 0.0043 | AS115: 0 | AU115: 0 | BA115: 29 | BB115: YES
A116: ASBESTOS (fibers/L) | B116: 12001-29-5 | C116: 7000000 | D116: M | E116: 7000000 | F116: M | G116: 7000000 | H116: M | I116: 7000000 | J116: M | K116: 7000000 | L116: M | M116: 7000000 | N116: M | O116: NA | P116: NA | Q116: NA | R116: NA | S116: NA | T116: NA | U116: NA | V116: NA | W116: NA | X116: NA | Y116: NA | Z116: NA | AA116: NA | AB116: NA | AC116: NA | AD116: NA | AE116: NA | AF116: NA | AG116: NA | AH116: NA | AI116: NA | AJ116: NA | AK116: NA | AL116: NA | AM116: NA | AN116: NA | AO116: NA | AP116: NA | AQ116: NA | AR116: NA | AS116: NA | AT116: NA | AU116: NA | AV116: NA | AW116: NA | AX116: NA | AY116: NA | AZ116: NA | BA116: NA | BB116: NO
A117: ATRAZINE | B117: 1912-24-9 | C117: 3 | D117: M | E117: 3 | F117: M | G117: 300 | H117: M | I117: 300 | J117: M | K117: 3 | L117: M | M117: 3 | N117: M | O117: 81 | P117: G | Q117: 400 | R117: G | S117: 190000 | T117: C | U117: 0.3 | V117: 0.13 | W117: E | X117: 0.3 | Y117: 0.13 | Z117: E | AA117: 30 | AB117: 13 | AC117: E | AD117: 30 | AE117: 13 | AF117: E | AG117: 0.3 | AH117: 0.13 | AI117: E | AJ117: 0.3 | AK117: 0.13 | AL117: E | AM117: NA | AN117: NA | AO117: 0.035 | AP117: 0.23 | AQ117: 0 | AR117: 0 | AS117: 130 | AU117: 70 | AY117: 313 | AZ117: 0 | BB117: NO
A118: AZINPHOS-METHYL (GUTHION) | B118: 86-50-0 | C118: 130 | D118: G | E118: 350 | F118: G | G118: 13000 | H118: G | I118: 32000 | J118: S | K118: 130 | L118: G | M118: 350 | N118: G | O118: 660 | P118: G | Q118: 9600 | R118: G | S118: 190000 | T118: C | U118: 13 | V118: 15 | W118: E | X118: 35 | Y118: 40 | Z118: E | AA118: 1300 | AB118: 1500 | AC118: E | AD118: 3200 | AE118: 3600 | AF118: E | AG118: 13 | AH118: 15 | AI118: E | AJ118: 35 | AK118: 40 | AL118: E | AM118: NA | AN118: NA | AO118: 0.003 | AP118: 0 | AQ118: 0.01 | AR118: 0 | AS118: 407.4 | AU118: 31.5 | AY118: 421 | AZ118: 0 | BB118: NO
A119: BARIUM AND COMPOUNDS | B119: 7440-39-3 | C119: 2000 | D119: M | E119: 2000 | F119: M | G119: 200000 | H119: M | I119: 200000 | J119: M | K119: 2000000 | L119: M | M119: 2000000 | N119: M | O119: 44000 | P119: G | Q119: 190000 | R119: C | S119: 190000 | T119: C | U119: 200 | V119: 8200 | W119: 0 | X119: 200 | Y119: 8200 | Z119: 0 | AA119: 20000 | AB119: 190000 | AC119: 0 | AD119: 20000 | AE119: 190000 | AF119: 0 | AG119: 190000 | AH119: 190000 | AI119: 0 | AJ119: 190000 | AK119: 190000 | AL119: 0 | AM119: 15 | AN119: NA | AO119: 0.2 | AP119: 0 | AQ119: 0.0005 | AR119: 0 | AS119: 0 | AU119: 0 | BA119: 41 | BB119: YES
A120: BAYGON (PROPOXUR) | B120: 114-26-1 | C120: 3 | D120: H | E120: 3 | F120: H | G120: 300 | H120: H | I120: 300 | J120: H | K120: 3000 | L120: H | M120: 3000 | N120: H | O120: 880 | P120: G | Q120: 13000 | R120: G | S120: 190000 | T120: C | U120: 0.3 | V120: 0.057 | W120: E | X120: 0.3 | Y120: 0.057 | Z120: E | AA120: 30 | AB120: 5.7 | AC120: E | AD120: 30 | AE120: 5.7 | AF120: E | AG120: 300 | AH120: 57 | AI120: E | AJ120: 300 | AK120: 57 | AL120: E | AM120: NA | AN120: NA | AO120: 0.004 | AP120: 0 | AQ120: 0 | AR120: 0 | AS120: 31 | AU120: 2000 | AY120: decomp. | AZ120: 4.5 | BB120: NO
A121: BENOMYL | B121: 17804-35-2 | C121: 2000 | D121: S | E121: 2000 | F121: S | G121: 2000 | H121: S | I121: 2000 | J121: S | K121: 2000 | L121: S | M121: 2000 | N121: S | O121: 11000 | P121: G | Q121: 160000 | R121: G | S121: 190000 | T121: C | U121: 200 | V121: 970 | W121: E | X121: 200 | Y121: 970 | Z121: E | AA121: 200 | AB121: 970 | AC121: E | AD121: 200 | AE121: 970 | AF121: E | AG121: 200 | AH121: 970 | AI121: E | AJ121: 200 | AK121: 970 | AL121: E | AM121: 20 | AN121: NA | AO121: 0.05 | AP121: 0 | AQ121: 0 | AR121: 0 | AS121: 1900 | AU121: 2 | AY121: 520 | AZ121: 0 | BB121: NO
A122: BENTAZON | B122: 25057-89-0 | C122: 200 | D122: H | E122: 200 | F122: H | G122: 20000 | H122: H | I122: 20000 | J122: H | K122: 200 | L122: H | M122: 200 | N122: H | O122: 6600 | P122: G | Q122: 96000 | R122: G | S122: 190000 | T122: C | U122: 20 | V122: 2.9 | W122: E | X122: 20 | Y122: 2.9 | Z122: E | AA122: 2000 | AB122: 290 | AC122: E | AD122: 2000 | AE122: 290 | AF122: E | AG122: 20 | AH122: 2.9 | AI122: E | AJ122: 20 | AK122: 2.9 | AL122: E | AM122: NA | AN122: NA | AO122: 0.03 | AP122: 0 | AQ122: 0 | AR122: 0 | AS122: 13 | AU122: 500 | AY122: 415 | AZ122: 0 | BB122: NO
A123: BENZENE | B123: 71-43-2 | C123: 5 | D123: M | E123: 5 | F123: M | G123: 500 | H123: M | I123: 500 | J123: M | K123: 500 | L123: M | M123: 500 | N123: M | O123: 57 | P123: N | Q123: 290 | R123: N | S123: 330 | T123: N | U123: 0.5 | V123: 0.13 | W123: E | X123: 0.5 | Y123: 0.13 | Z123: E | AA123: 50 | AB123: 13 | AC123: E | AD123: 50 | AE123: 13 | AF123: E | AG123: 50 | AH123: 13 | AI123: E | AJ123: 50 | AK123: 13 | AL123: E | AM123: NA | AN123: NA | AO123: 0.004 | AP123: 0.055 | AQ123: 0.03 | AR123: 7.8e-06 | AS123: 58 | AT123: X | AU123: 1780.5 | AV123: 13100 | AW123: 15000 | AX123: X | AY123: 80.9 | AZ123: 0.35 | BB123: YES
A124: BENZIDINE | B124: 92-87-5 | C124: 0.00098 | D124: G | E124: 0.015 | F124: G | G124: 0.098 | H124: G | I124: 1.5 | J124: G | K124: 0.98 | L124: G | M124: 15 | N124: G | O124: 0.018 | P124: G | Q124: 0.4 | R124: G | S124: 190000 | T124: C | U124: 9.8e-05 | V124: 0.13 | W124: E | X124: 0.0015 | Y124: 2 | Z124: E | AA124: 0.0098 | AB124: 13 | AC124: E | AD124: 0.15 | AE124: 200 | AF124: E | AG124: 0.098 | AH124: 130 | AI124: E | AJ124: 1.5 | AK124: 2000 | AL124: E | AM124: 5 | AN124: NA | AO124: 0.003 | AP124: 230 | AQ124: 0 | AR124: 0.067 | AS124: 530000 | AU124: 520 | AY124: 400 | AZ124: 15.81 | BB124: NO
A125: BENZO[A]ANTHRACENE | B125: 56-55-3 | C125: 0.32 | D125: G | E125: 4.9 | F125: G | G125: 11 | H125: S | I125: 11 | J125: S | K125: 11 | L125: S | M125: 11 | N125: S | O125: 6 | P125: G | Q125: 130 | R125: G | S125: 190000 | T125: C | U125: 0.032 | V125: 28 | W125: E | X125: 0.49 | Y125: 430 | Z125: E | AA125: 1.1 | AB125: 960 | AC125: E | AD125: 1.1 | AE125: 960 | AF125: E | AG125: 1.1 | AH125: 960 | AI125: E | AJ125: 1.1 | AK125: 960 | AL125: E | AM125: 5 | AN125: NA | AO125: 0 | AP125: 0.7 | AQ125: 0 | AR125: 0.00011 | AS125: 350000 | AU125: 0.011 | AY125: 437.6 | AZ125: 0.19 | BB125: YES
A126: BENZO[A]PYRENE | B126: 50-32-8 | C126: 0.2 | D126: M | E126: 0.2 | F126: M | G126: 3.8 | H126: S | I126: 3.8 | J126: S | K126: 3.8 | L126: S | M126: 3.8 | N126: S | O126: 0.58 | P126: G | Q126: 12 | R126: G | S126: 190000 | T126: C | U126: 0.02 | V126: 46 | W126: E | X126: 0.02 | Y126: 46 | Z126: E | AA126: 0.38 | AB126: 860 | AC126: E | AD126: 0.38 | AE126: 860 | AF126: E | AG126: 0.38 | AH126: 860 | AI126: E | AJ126: 0.38 | AK126: 860 | AL126: E | AM126: 5 | AN126: NA | AO126: 0 | AP126: 7.3 | AQ126: 0 | AR126: 0.0011 | AS126: 910000 | AU126: 0.0038 | AY126: 495 | AZ126: 0.24 | BB126: YES
A127: BENZO[B]FLUORANTHENE | B127: 205-99-2 | C127: 0.19 | D127: G | E127: 1.2 | F127: S | G127: 1.2 | H127: S | I127: 1.2 | J127: S | K127: 1.2 | L127: S | M127: 1.2 | N127: S | O127: 3.5 | P127: G | Q127: 76 | R127: G | S127: 190000 | T127: C | U127: 0.019 | V127: 26 | W127: E | X127: 0.12 | Y127: 170 | Z127: E | AA127: 0.12 | AB127: 170 | AC127: E | AD127: 0.12 | AE127: 170 | AF127: E | AG127: 0.12 | AH127: 170 | AI127: E | AJ127: 0.12 | AK127: 170 | AL127: E | AM127: 5 | AN127: NA | AO127: 0 | AP127: 1.2 | AQ127: 0 | AR127: 0.00011 | AS127: 550000 | AU127: 0.0012 | AY127: 357 | AZ127: 0.21 | BB127: YES
A128: BENZO[GHI]PERYLENE | B128: 191-24-2 | C128: 0.26 | D128: S | E128: 0.26 | F128: S | G128: 0.26 | H128: S | I128: 0.26 | J128: S | K128: 0.26 | L128: S | M128: 0.26 | N128: S | O128: 13000 | P128: G | Q128: 190000 | R128: C | S128: 190000 | T128: C | U128: 0.026 | V128: 180 | W128: E | X128: 0.026 | Y128: 180 | Z128: E | AA128: 0.026 | AB128: 180 | AC128: E | AD128: 0.026 | AE128: 180 | AF128: E | AG128: 0.026 | AH128: 180 | AI128: E | AJ128: 0.026 | AK128: 180 | AL128: E | AM128: 5 | AN128: NA | AO128: 0.06 | AP128: 0 | AQ128: 0 | AR128: 0 | AS128: 2800000 | AU128: 0.00026 | AY128: 500 | AZ128: 0.19 | BB128: YES
A129: BENZO[K]FLUORANTHENE | B129: 207-08-9 | C129: 0.19 | D129: G | E129: 0.55 | F129: S | G129: 0.55 | H129: S | I129: 0.55 | J129: S | K129: 0.55 | L129: S | M129: 0.55 | N129: S | O129: 4 | P129: G | Q129: 76 | R129: G | S129: 190000 | T129: C | U129: 0.019 | V129: 210 | W129: E | X129: 0.055 | Y129: 610 | Z129: E | AA129: 0.055 | AB129: 610 | AC129: E | AD129: 0.055 | AE129: 610 | AF129: E | AG129: 0.055 | AH129: 610 | AI129: E | AJ129: 0.055 | AK129: 610 | AL129: E | AM129: 5 | AN129: NA | AO129: 0 | AP129: 1.2 | AQ129: 0 | AR129: 0.00011 | AS129: 4400000 | AU129: 0.00055 | AY129: 480 | AZ129: 0.06 | BB129: YES
A130: BENZOIC ACID | B130: 65-85-0 | C130: 170000 | D130: G | E130: 470000 | F130: G | G130: 2700000 | H130: S | I130: 2700000 | J130: S | K130: 170000 | L130: G | M130: 470000 | N130: G | O130: 190000 | P130: C | Q130: 190000 | R130: C | S130: 190000 | T130: C | U130: 17000 | V130: 3200 | W130: E | X130: 47000 | Y130: 9000 | Z130: E | AA130: 190000 | AB130: 52000 | AC130: E | AD130: 190000 | AE130: 52000 | AF130: E | AG130: 17000 | AH130: 3200 | AI130: E | AJ130: 47000 | AK130: 9000 | AL130: E | AM130: NA | AN130: NA | AO130: 4 | AP130: 0 | AQ130: 0 | AR130: 0 | AS130: 32 | AU130: 2700 | AY130: 249.2 | AZ130: 0 | BB130: NO
A131: BENZOTRICHLORIDE | B131: 98-07-7 | C131: 0.056 | D131: G | E131: 0.26 | F131: G | G131: 5.6 | H131: G | I131: 26 | J131: G | K131: 56 | L131: G | M131: 260 | N131: G | O131: 1.4 | P131: G | Q131: 7 | R131: G | S131: 10000 | T131: C | U131: 0.0056 | V131: 0.014 | W131: E | X131: 0.026 | Y131: 0.063 | Z131: E | AA131: 0.56 | AB131: 1.4 | AC131: E | AD131: 3 | AE131: 6.3 | AF131: E | AG131: 5.6 | AH131: 14 | AI131: E | AJ131: 26 | AK131: 63 | AL131: E | AM131: 30 | AN131: NA | AO131: 0 | AP131: 13 | AQ131: 0 | AR131: 0 | AS131: 920 | AU131: 53 | AX131: X | AY131: 220.8 | AZ131: 121413.6 | BB131: NO
A132: BENZYL ALCOHOL | B132: 100-51-6 | C132: 4200 | D132: G | E132: 12000 | F132: G | G132: 420000 | H132: G | I132: 1200000 | J132: G | K132: 4200 | L132: G | M132: 12000 | N132: G | O132: 10000 | P132: C | Q132: 10000 | R132: C | S132: 10000 | T132: C | U132: 420 | V132: 150 | W132: E | X132: 1200 | Y132: 430 | Z132: E | AA132: 10000 | AB132: 10000 | AC132: C | AD132: 10000 | AE132: 10000 | AF132: C | AG132: 420 | AH132: 150 | AI132: E | AJ132: 1200 | AK132: 430 | AL132: E | AM132: NA | AN132: NA | AO132: 0.1 | AP132: 0 | AQ132: 0 | AR132: 0 | AS132: 100 | AU132: 40000 | AX132: X | AY132: 205.3 | AZ132: 0 | BB132: NO
A133: BENZYL CHLORIDE | B133: 100-44-7 | C133: 1 | D133: N | E133: 5.1 | F133: N | G133: 100 | H133: N | I133: 510 | J133: N | K133: 100 | L133: N | M133: 510 | N133: N | O133: 9 | P133: N | Q133: 45 | R133: N | S133: 52 | T133: N | U133: 0.1 | V133: 0.059 | W133: E | X133: 0.51 | Y133: 0.3 | Z133: E | AA133: 10 | AB133: 5.9 | AC133: E | AD133: 51 | AE133: 30 | AF133: E | AG133: 10 | AH133: 5.9 | AI133: E | AJ133: 51 | AK133: 30 | AL133: E | AM133: NA | AN133: NA | AO133: 0.002 | AP133: 0.17 | AQ133: 0.001 | AR133: 4.9e-05 | AS133: 190 | AT133: X | AU133: 493 | AV133: 13000 | AW133: 15000 | AX133: X | AY133: 179.4 | AZ133: 20.9 | BB133: NO
A134: BERYLLIUM | B134: 7440-41-7 | C134: 4 | D134: M | E134: 4 | F134: M | G134: 400 | H134: M | I134: 400 | J134: M | K134: 4000 | L134: M | M134: 4000 | N134: M | O134: 2 | P134: G | Q134: 11 | R134: G | S134: 190000 | T134: C | U134: 0.4 | V134: 320 | W134: 0 | X134: 0.4 | Y134: 320 | Z134: 0 | AA134: 40 | AB134: 32000 | AC134: 0 | AD134: 40 | AE134: 32000 | AF134: 0 | AG134: 400 | AH134: 190000 | AI134: 0 | AJ134: 400 | AK134: 190000 | AL134: 0 | AM134: 10 | AN134: NA | AO134: 0.002 | AP134: 8.4 | AQ134: 2e-05 | AR134: 0.0024 | AS134: 0 | AU134: 0 | BA134: 790 | BB134: YES
A135: BETA PROPIOLACTONE | B135: 57-57-8 | C135: 0.012 | D135: N | E135: 0.063 | F135: N | G135: 1.2 | H135: N | I135: 6.3 | J135: N | K135: 0.12 | L135: N | M135: 0.63 | N135: N | O135: 0.11 | P135: N | Q135: 0.56 | R135: N | S135: 0.64 | T135: N | U135: 0.0012 | V135: 0.00015 | W135: E | X135: 0.0063 | Y135: 0.00076 | Z135: E | AA135: 0.1 | AB135: 0.015 | AC135: E | AD135: 0.63 | AE135: 0.076 | AF135: E | AG135: 0.012 | AH135: 0.0015 | AI135: E | AJ135: 0.063 | AK135: 0.0076 | AL135: E | AM135: NA | AN135: NA | AO135: 0 | AP135: 14 | AQ135: 0 | AR135: 0.004 | AS135: 4 | AT135: X | AU135: 370000 | AV135: 13100 | AW135: 15000 | AX135: X | AY135: 162 | AZ135: 0.01 | BB135: NO
A136: BHC, ALPHA- | B136: 319-84-6 | C136: 0.12 | D136: G | E136: 0.54 | F136: G | G136: 12 | H136: G | I136: 54 | J136: G | K136: 120 | L136: G | M136: 540 | N136: G | O136: 3 | P136: G | Q136: 14 | R136: G | S136: 190000 | T136: C | U136: 0.012 | V136: 0.055 | W136: E | X136: 0.054 | Y136: 0.25 | Z136: E | AA136: 1 | AB136: 5.5 | AC136: E | AD136: 5.4 | AE136: 25 | AF136: E | AG136: 12 | AH136: 55 | AI136: E | AJ136: 54 | AK136: 250 | AL136: E | AM136: 20 | AN136: NA | AO136: 0.008 | AP136: 6.3 | AQ136: 0 | AR136: 0.0018 | AS136: 1800 | AU136: 1.7 | AY136: 288 | AZ136: 0.94 | BB136: NO
A137: BHC, BETA- | B137: 319-85-7 | C137: 0.41 | D137: G | E137: 1.9 | F137: G | G137: 41 | H137: G | I137: 100 | J137: S | K137: 100 | L137: S | M137: 100 | N137: S | O137: 10 | P137: G | Q137: 51 | R137: G | S137: 190000 | T137: C | U137: 0.041 | V137: 0.24 | W137: E | X137: 0.19 | Y137: 1.1 | Z137: E | AA137: 4.1 | AB137: 24 | AC137: E | AD137: 10 | AE137: 59 | AF137: E | AG137: 10 | AH137: 59 | AI137: E | AJ137: 10 | AK137: 59 | AL137: E | AM137: 15 | AN137: NA | AO137: 0 | AP137: 1.8 | AQ137: 0 | AR137: 0.00053 | AS137: 2300 | AU137: 0.1 | AY137: 304 | AZ137: 1.02 | BB137: NO
A138: BHC, DELTA | B138: 319-86-8 | C138: NA | D138: NA | E138: NA | F138: NA | G138: NA | H138: NA | I138: NA | J138: NA | K138: NA | L138: NA | M138: NA | N138: NA | O138: NA | P138: NA | Q138: NA | R138: NA | S138: NA | T138: NA | U138: NA | V138: NA | W138: NA | X138: NA | Y138: NA | Z138: NA | AA138: NA | AB138: NA | AC138: NA | AD138: NA | AE138: NA | AF138: NA | AG138: NA | AH138: NA | AI138: NA | AJ138: NA | AK138: NA | AL138: NA | AM138: NA | AN138: NA | AO138: NA | AP138: NA | AQ138: NA | AR138: NA | AS138: NA | AT138: NA | AU138: NA | AV138: NA | AW138: NA | AX138: NA | AY138: NA | AZ138: NA | BA138: NA | BB138: NO
A139: BHC, GAMMA (LINDANE) | B139: 58-89-9 | C139: 0.2 | D139: M | E139: 0.2 | F139: M | G139: 20 | H139: M | I139: 20 | J139: M | K139: 200 | L139: M | M139: 200 | N139: M | O139: 17 | P139: G | Q139: 83 | R139: G | S139: 190000 | T139: C | U139: 0.02 | V139: 0.072 | W139: E | X139: 0.02 | Y139: 0.072 | Z139: E | AA139: 2 | AB139: 7.2 | AC139: E | AD139: 2 | AE139: 7.2 | AF139: E | AG139: 20 | AH139: 72 | AI139: E | AJ139: 20 | AK139: 72 | AL139: E | AM139: 20 | AN139: NA | AO139: 0.0003 | AP139: 1.1 | AQ139: 0 | AR139: 0.00031 | AS139: 1400 | AU139: 7.3 | AY139: 323.4 | AZ139: 1.05 | BB139: YES
A140: BIPHENYL, 1,1- | B140: 92-52-4 | C140: 91 | D140: G | E140: 430 | F140: G | G140: 7200 | H140: S | I140: 7200 | J140: S | K140: 7200 | L140: S | M140: 7200 | N140: S | O140: 2300 | P140: G | Q140: 11000 | R140: G | S140: 190000 | T140: C | U140: 9.1 | V140: 40 | W140: E | X140: 43 | Y140: 190 | Z140: E | AA140: 720 | AB140: 3100 | AC140: E | AD140: 720 | AE140: 3100 | AF140: E | AG140: 720 | AH140: 3100 | AI140: E | AJ140: 720 | AK140: 3100 | AL140: E | AM140: 20 | AN140: NA | AO140: 0.05 | AP140: 0.008 | AQ140: 0.0004 | AR140: 0 | AS140: 1700 | AU140: 7.2 | AY140: 255 | AZ140: 18.07 | BB140: YES
A141: BIS(2-CHLOROETHOXY)METHANE | B141: 111-91-1 | C141: 130 | D141: G | E141: 350 | F141: G | G141: 13000 | H141: G | I141: 35000 | J141: G | K141: 130 | L141: G | M141: 350 | N141: G | O141: 660 | P141: G | Q141: 9600 | R141: G | S141: 10000 | T141: C | U141: 13 | V141: 3.4 | W141: E | X141: 35 | Y141: 9.2 | Z141: E | AA141: 1300 | AB141: 340 | AC141: E | AD141: 3500 | AE141: 920 | AF141: E | AG141: 13 | AH141: 3.4 | AI141: E | AJ141: 35 | AK141: 9.2 | AL141: E | AM141: NA | AN141: NA | AO141: 0.003 | AP141: 0 | AQ141: 0 | AR141: 0 | AS141: 61 | AU141: 100500 | AX141: X | AY141: 218 | AZ141: 0 | BB141: NO
A142: BIS(2-CHLOROETHYL)ETHER | B142: 111-44-4 | C142: 0.15 | D142: N | E142: 0.76 | F142: N | G142: 15 | H142: N | I142: 76 | J142: N | K142: 15 | L142: N | M142: 76 | N142: N | O142: 1.3 | P142: N | Q142: 6.7 | R142: N | S142: 7.7 | T142: N | U142: 0.015 | V142: 0.0045 | W142: E | X142: 0.076 | Y142: 0.023 | Z142: E | AA142: 1.5 | AB142: 0.45 | AC142: E | AD142: 7.6 | AE142: 2.3 | AF142: E | AG142: 1.5 | AH142: 0.45 | AI142: E | AJ142: 7.6 | AK142: 2.3 | AL142: E | AM142: NA | AN142: NA | AO142: 0 | AP142: 1.1 | AQ142: 0 | AR142: 0.00033 | AS142: 76 | AT142: X | AU142: 10200 | AV142: 13000 | AW142: 14900 | AX142: X | AY142: 178.75 | AZ142: 0.69 | BB142: NO
A143: BIS(2-CHLORO-ISOPROPYL)ETHER | B143: 108-60-1 | C143: 300 | D143: H | E143: 300 | F143: H | G143: 30000 | H143: H | I143: 30000 | J143: H | K143: 30000 | L143: H | M143: 30000 | N143: H | O143: 44 | P143: N | Q143: 220 | R143: N | S143: 250 | T143: N | U143: 30 | V143: 8 | W143: E | X143: 30 | Y143: 8 | Z143: E | AA143: 3000 | AB143: 800 | AC143: E | AD143: 3000 | AE143: 800 | AF143: E | AG143: 3000 | AH143: 800 | AI143: E | AJ143: 3000 | AK143: 800 | AL143: E | AM143: NA | AN143: NA | AO143: 0.04 | AP143: 0.07 | AQ143: 0 | AR143: 1e-05 | AS143: 62 | AT143: X | AU143: 1700 | AV143: 13000 | AW143: 14900 | AX143: X | AY143: 189 | AZ143: 0.69 | BB143: NO
A144: BIS(CHLOROMETHYL)ETHER | B144: 542-88-1 | C144: 0.00079 | D144: N | E144: 0.004 | F144: N | G144: 0.079 | H144: N | I144: 0.4 | J144: N | K144: 0.079 | L144: N | M144: 0.4 | N144: N | O144: 0.0072 | P144: N | Q144: 0.036 | R144: N | S144: 0.041 | T144: N | U144: 7.9e-05 | V144: 1.2e-05 | W144: E | X144: 0.0004 | Y144: 6e-05 | Z144: E | AA144: 0.0079 | AB144: 0.001 | AC144: E | AD144: 0.04 | AE144: 0.006 | AF144: E | AG144: 0.0079 | AH144: 0.0012 | AI144: E | AJ144: 0.04 | AK144: 0.006 | AL144: E | AM144: NA | AN144: NA | AO144: 0 | AP144: 220 | AQ144: 0 | AR144: 0.062 | AS144: 16 | AT144: X | AU144: 22000 | AV144: 13100 | AW144: 15100 | AX144: X | AY144: 105 | AZ144: 57270.57 | BB144: NO
A145: BIS[2-ETHYLHEXYL] PHTHALATE | B145: 117-81-7 | C145: 6 | D145: M | E145: 6 | F145: M | G145: 290 | H145: S | I145: 290 | J145: S | K145: 290 | L145: S | M145: 290 | N145: S | O145: 1300 | P145: G | Q145: 6500 | R145: G | S145: 10000 | T145: C | U145: 0.6 | V145: 130 | W145: E | X145: 0.6 | Y145: 130 | Z145: E | AA145: 29 | AB145: 6300 | AC145: E | AD145: 29 | AE145: 6300 | AF145: E | AG145: 29 | AH145: 6300 | AI145: E | AJ145: 29 | AK145: 6300 | AL145: E | AM145: 10 | AN145: NA | AO145: 0.02 | AP145: 0.014 | AQ145: 0 | AR145: 2.4e-06 | AS145: 87000 | AU145: 0.285 | AX145: X | AY145: 384 | AZ145: 0.65 | BB145: YES
A146: BISPHENOL A | B146: 80-05-7 | C146: 2100 | D146: G | E146: 5800 | F146: G | G146: 120000 | H146: S | I146: 120000 | J146: S | K146: 120000 | L146: S | M146: 120000 | N146: S | O146: 11000 | P146: G | Q146: 160000 | R146: G | S146: 190000 | T146: C | U146: 210 | V146: 810 | W146: E | X146: 580 | Y146: 2200 | Z146: E | AA146: 12000 | AB146: 46000 | AC146: E | AD146: 12000 | AE146: 46000 | AF146: E | AG146: 12000 | AH146: 46000 | AI146: E | AJ146: 12000 | AK146: 46000 | AL146: E | AM146: 20 | AN146: NA | AO146: 0.05 | AP146: 0 | AQ146: 0 | AR146: 0 | AS146: 1500 | AU146: 120 | AY146: 220 | AZ146: 0.69 | BB146: NO
A147: BORON AND COMPOUNDS | B147: 7440-42-8 | C147: 6000 | D147: H | E147: 6000 | F147: H | G147: 600000 | H147: H | I147: 600000 | J147: H | K147: 6000000 | L147: H | M147: 6000000 | N147: H | O147: 44000 | P147: G | Q147: 190000 | R147: C | S147: 190000 | T147: C | U147: 600 | V147: 1900 | W147: 0 | X147: 600 | Y147: 1900 | Z147: 0 | AA147: 60000 | AB147: 190000 | AC147: 0 | AD147: 60000 | AE147: 190000 | AF147: 0 | AG147: 190000 | AH147: 190000 | AI147: 0 | AJ147: 190000 | AK147: 190000 | AL147: 0 | AM147: 30 | AN147: NA | AO147: 0.2 | AP147: 0 | AQ147: 0.02 | AR147: 0 | AS147: 0 | AU147: 0 | BA147: 3 | BB147: NO
A148: BROMACIL | B148: 314-40-9 | C148: 70 | D148: H | E148: 70 | F148: H | G148: 7000 | H148: H | I148: 7000 | J148: H | K148: 70 | L148: H | M148: 70 | N148: H | O148: 22000 | P148: G | Q148: 190000 | R148: C | S148: 190000 | T148: C | U148: 7 | V148: 1.8 | W148: E | X148: 7 | Y148: 1.8 | Z148: E | AA148: 700 | AB148: 180 | AC148: E | AD148: 700 | AE148: 180 | AF148: E | AG148: 7 | AH148: 1.8 | AI148: E | AJ148: 7 | AK148: 1.8 | AL148: E | AM148: NA | AN148: NA | AO148: 0.1 | AP148: 0 | AQ148: 0 | AR148: 0 | AS148: 58 | AU148: 815 | AY148: 421 | AZ148: 0 | BB148: NO
A149: BROMOCHLOROMETHANE | B149: 74-97-5 | C149: 90 | D149: H | E149: 90 | F149: H | G149: 9000 | H149: H | I149: 9000 | J149: H | K149: 90 | L149: H | M149: 90 | N149: H | O149: 770 | P149: N | Q149: 3200 | R149: N | S149: 3600 | T149: N | U149: 9 | V149: 1.6 | W149: E | X149: 9 | Y149: 1.6 | Z149: E | AA149: 900 | AB149: 160 | AC149: E | AD149: 900 | AE149: 160 | AF149: E | AG149: 9 | AH149: 1.6 | AI149: E | AJ149: 9 | AK149: 1.6 | AL149: E | AM149: NA | AN149: NA | AO149: 0.01 | AP149: 0 | AQ149: 0.04 | AR149: 0 | AS149: 27 | AT149: X | AU149: 16700 | AV149: 13100 | AW149: 15000 | AX149: X | AY149: 68 | AZ149: 0 | BB149: NO
A150: BROMODICHLOROMETHANE | B150: 75-27-4 | C150: 80 | D150: M | E150: 80 | F150: M | G150: 8000 | H150: M | I150: 8000 | J150: M | K150: 80 | L150: M | M150: 80 | N150: M | O150: 12 | P150: N | Q150: 60 | R150: N | S150: 69 | T150: N | U150: 8 | V150: 2.7 | W150: E | X150: 8 | Y150: 2.7 | Z150: E | AA150: 800 | AB150: 270 | AC150: E | AD150: 800 | AE150: 270 | AF150: E | AG150: 8 | AH150: 2.7 | AI150: E | AJ150: 8 | AK150: 2.7 | AL150: E | AM150: NA | AN150: NA | AO150: 0.02 | AP150: 0.062 | AQ150: 0 | AR150: 3.7e-05 | AS150: 93 | AT150: X | AU150: 4500 | AV150: 13100 | AW150: 15000 | AX150: X | AY150: 87 | AZ150: 0 | BB150: NO
A151: BROMOMETHANE | B151: 74-83-9 | C151: 10 | D151: H | E151: 10 | F151: H | G151: 1000 | H151: H | I151: 1000 | J151: H | K151: 1000 | L151: H | M151: 1000 | N151: H | O151: 96 | P151: N | Q151: 400 | R151: N | S151: 460 | T151: N | U151: 1 | V151: 0.54 | W151: E | X151: 1 | Y151: 0.54 | Z151: E | AA151: 100 | AB151: 54 | AC151: E | AD151: 100 | AE151: 54 | AF151: E | AG151: 100 | AH151: 54 | AI151: E | AJ151: 100 | AK151: 54 | AL151: E | AM151: NA | AN151: NA | AO151: 0.0014 | AP151: 0 | AQ151: 0.005 | AR151: 0 | AS151: 170 | AT151: X | AU151: 17500 | AV151: 13100 | AW151: 15000 | AX151: X | AY151: 3.55 | AZ151: 6.66 | BB151: NO
A152: BROMOPHENYL PHENYL ETHER, 4- | B152: 101-55-3 | C152: NA | D152: NA | E152: NA | F152: NA | G152: NA | H152: NA | I152: NA | J152: NA | K152: NA | L152: NA | M152: NA | N152: NA | O152: NA | P152: NA | Q152: NA | R152: NA | S152: NA | T152: NA | U152: NA | V152: NA | W152: NA | X152: NA | Y152: NA | Z152: NA | AA152: NA | AB152: NA | AC152: NA | AD152: NA | AE152: NA | AF152: NA | AG152: NA | AH152: NA | AI152: NA | AJ152: NA | AK152: NA | AL152: NA | AM152: NA | AN152: NA | AO152: NA | AP152: NA | AQ152: NA | AR152: NA | AS152: NA | AT152: NA | AU152: NA | AV152: NA | AW152: NA | AX152: NA | AY152: NA | AZ152: NA | BA152: NA | BB152: YES
A153: BROMOXYNIL | B153: 1689-84-5 | C153: 830 | D153: G | E153: 2300 | F153: G | G153: 83000 | H153: G | I153: 130000 | J153: S | K153: 830 | L153: G | M153: 2300 | N153: G | O153: 4400 | P153: G | Q153: 64000 | R153: G | S153: 190000 | T153: C | U153: 83 | V153: 71 | W153: E | X153: 230 | Y153: 200 | Z153: E | AA153: 8300 | AB153: 7100 | AC153: E | AD153: 13000 | AE153: 11000 | AF153: E | AG153: 83 | AH153: 71 | AI153: E | AJ153: 230 | AK153: 200 | AL153: E | AM153: NA | AN153: NA | AO153: 0.02 | AP153: 0 | AQ153: 0 | AR153: 0 | AS153: 300 | AU153: 130 | AY153: 329 | AZ153: 0 | BB153: NO
A154: BROMOXYNIL OCTANOATE | B154: 1689-99-2 | C154: 80 | D154: S | E154: 80 | F154: S | G154: 80 | H154: S | I154: 80 | J154: S | K154: 80 | L154: S | M154: 80 | N154: S | O154: 4400 | P154: G | Q154: 64000 | R154: G | S154: 190000 | T154: C | U154: 8 | V154: 360 | W154: E | X154: 8 | Y154: 360 | Z154: E | AA154: 8 | AB154: 360 | AC154: E | AD154: 8 | AE154: 360 | AF154: E | AG154: 8 | AH154: 360 | AI154: E | AJ154: 8 | AK154: 360 | AL154: E | AM154: 15 | AN154: NA | AO154: 0.02 | AP154: 0 | AQ154: 0 | AR154: 0 | AS154: 18000 | AU154: 0.08 | AY154: 414 | AZ154: 5.75 | BB154: NO
A155: BUTADIENE, 1,3- | B155: 106-99-0 | C155: 0.21 | D155: G | E155: 1 | F155: G | G155: 21 | H155: G | I155: 100 | J155: G | K155: 21 | L155: G | M155: 100 | N155: G | O155: 5.5 | P155: G | Q155: 27 | R155: G | S155: 85 | T155: N | U155: 0.021 | V155: 0.0086 | W155: E | X155: 0.1 | Y155: 0.041 | Z155: E | AA155: 2.1 | AB155: 0.86 | AC155: E | AD155: 10 | AE155: 4.1 | AF155: E | AG155: 2.1 | AH155: 0.86 | AI155: E | AJ155: 10 | AK155: 4.1 | AL155: E | AM155: NA | AN155: NA | AO155: 0 | AP155: 3.4 | AQ155: 0.002 | AR155: 3e-05 | AS155: 120 | AT155: X | AU155: 735 | AV155: 13200 | AW155: 15000 | AX155: X | AY155: -4.5 | AZ155: 4.5 | BB155: NO
A156: BUTYL ACETATE, N- | B156: 123-86-4 | C156: NA | D156: NA | E156: NA | F156: NA | G156: NA | H156: NA | I156: NA | J156: NA | K156: NA | L156: NA | M156: NA | N156: NA | O156: NA | P156: NA | Q156: NA | R156: NA | S156: NA | T156: NA | U156: NA | V156: NA | W156: NA | X156: NA | Y156: NA | Z156: NA | AA156: NA | AB156: NA | AC156: NA | AD156: NA | AE156: NA | AF156: NA | AG156: NA | AH156: NA | AI156: NA | AJ156: NA | AK156: NA | AL156: NA | AM156: NA | AN156: NA | AO156: NA | AP156: NA | AQ156: NA | AR156: NA | AS156: NA | AT156: NA | AU156: NA | AV156: NA | AW156: NA | AX156: NA | AY156: NA | AZ156: NA | BA156: NA | BB156: NO
A157: BUTYL ACETATE, SEC- | B157: 105-46-4 | C157: NA | D157: NA | E157: NA | F157: NA | G157: NA | H157: NA | I157: NA | J157: NA | K157: NA | L157: NA | M157: NA | N157: NA | O157: NA | P157: NA | Q157: NA | R157: NA | S157: NA | T157: NA | U157: NA | V157: NA | W157: NA | X157: NA | Y157: NA | Z157: NA | AA157: NA | AB157: NA | AC157: NA | AD157: NA | AE157: NA | AF157: NA | AG157: NA | AH157: NA | AI157: NA | AJ157: NA | AK157: NA | AL157: NA | AM157: NA | AN157: NA | AO157: NA | AP157: NA | AQ157: NA | AR157: NA | AS157: NA | AT157: NA | AU157: NA | AV157: NA | AW157: NA | AX157: NA | AY157: NA | AZ157: NA | BA157: NA | BB157: NO
A158: BUTYL ACETATE, TERT- | B158: 540-88-5 | C158: NA | D158: NA | E158: NA | F158: NA | G158: NA | H158: NA | I158: NA | J158: NA | K158: NA | L158: NA | M158: NA | N158: NA | O158: NA | P158: NA | Q158: NA | R158: NA | S158: NA | T158: NA | U158: NA | V158: NA | W158: NA | X158: NA | Y158: NA | Z158: NA | AA158: NA | AB158: NA | AC158: NA | AD158: NA | AE158: NA | AF158: NA | AG158: NA | AH158: NA | AI158: NA | AJ158: NA | AK158: NA | AL158: NA | AM158: NA | AN158: NA | AO158: NA | AP158: NA | AQ158: NA | AR158: NA | AS158: NA | AT158: NA | AU158: NA | AV158: NA | AW158: NA | AX158: NA | AY158: NA | AZ158: NA | BA158: NA | BB158: NO
A159: BUTYL ALCOHOL, N- | B159: 71-36-3 | C159: 4200 | D159: G | E159: 12000 | F159: G | G159: 420000 | H159: G | I159: 1200000 | J159: G | K159: 42000 | L159: G | M159: 120000 | N159: G | O159: 10000 | P159: C | Q159: 10000 | R159: C | S159: 10000 | T159: C | U159: 420 | V159: 50 | W159: E | X159: 1200 | Y159: 140 | Z159: E | AA159: 10000 | AB159: 5000 | AC159: E | AD159: 10000 | AE159: 10000 | AF159: C | AG159: 4200 | AH159: 500 | AI159: E | AJ159: 10000 | AK159: 1400 | AL159: E | AM159: NA | AN159: NA | AO159: 0.1 | AP159: 0 | AQ159: 0 | AR159: 0 | AS159: 3.2 | AT159: X | AU159: 74000 | AV159: 13000 | AW159: 14900 | AX159: X | AY159: 117.73 | AZ159: 4.68 | BB159: NO
A160: BUTYLAMINE, N- | B160: 109-73-9 | C160: NA | D160: NA | E160: NA | F160: NA | G160: NA | H160: NA | I160: NA | J160: NA | K160: NA | L160: NA | M160: NA | N160: NA | O160: NA | P160: NA | Q160: NA | R160: NA | S160: NA | T160: NA | U160: NA | V160: NA | W160: NA | X160: NA | Y160: NA | Z160: NA | AA160: NA | AB160: NA | AC160: NA | AD160: NA | AE160: NA | AF160: NA | AG160: NA | AH160: NA | AI160: NA | AJ160: NA | AK160: NA | AL160: NA | AM160: NA | AN160: NA | AO160: NA | AP160: NA | AQ160: NA | AR160: NA | AS160: NA | AT160: NA | AU160: NA | AV160: NA | AW160: NA | AX160: NA | AY160: NA | AZ160: NA | BA160: NA | BB160: NO
A161: BUTYLATE | B161: 2008-41-5 | C161: 400 | D161: H | E161: 400 | F161: H | G161: 40000 | H161: H | I161: 40000 | J161: H | K161: 400 | L161: H | M161: 400 | N161: H | O161: 10000 | P161: C | Q161: 10000 | R161: C | S161: 10000 | T161: C | U161: 40 | V161: 58 | W161: E | X161: 40 | Y161: 58 | Z161: E | AA161: 4000 | AB161: 5800 | AC161: E | AD161: 4000 | AE161: 5800 | AF161: E | AG161: 40 | AH161: 58 | AI161: E | AJ161: 40 | AK161: 58 | AL161: E | AM161: 30 | AN161: NA | AO161: 0.05 | AP161: 0 | AQ161: 0 | AR161: 0 | AS161: 540 | AT161: X | AU161: 45 | AV161: 13200 | AW161: 15200 | AX161: X | AY161: 138 | AZ161: 0 | BB161: NO
A162: BUTYLBENZENE, N- | B162: 104-51-8 | C162: 2100 | D162: G | E162: 5800 | F162: G | G162: 15000 | H162: S | I162: 15000 | J162: S | K162: 2100 | L162: G | M162: 5800 | N162: G | O162: 10000 | P162: C | Q162: 10000 | R162: C | S162: 10000 | T162: C | U162: 210 | V162: 1300 | W162: E | X162: 580 | Y162: 3700 | Z162: E | AA162: 1500 | AB162: 9500 | AC162: E | AD162: 1500 | AE162: 9500 | AF162: E | AG162: 210 | AH162: 1300 | AI162: E | AJ162: 580 | AK162: 3700 | AL162: E | AM162: 15 | AN162: NA | AO162: 0.05 | AP162: 0 | AQ162: 0 | AR162: 0 | AS162: 2500 | AT162: X | AU162: 15 | AV162: 13100 | AW162: 15100 | AX162: X | AY162: 183.1 | AZ162: 0 | BB162: NO
A163: BUTYLBENZENE, SEC- | B163: 135-98-8 | C163: 4200 | D163: G | E163: 12000 | F163: G | G163: 17000 | H163: S | I163: 17000 | J163: S | K163: 4200 | L163: G | M163: 12000 | N163: G | O163: 10000 | P163: C | Q163: 10000 | R163: C | S163: 10000 | T163: C | U163: 420 | V163: 980 | W163: E | X163: 1200 | Y163: 2800 | Z163: E | AA163: 1700 | AB163: 4000 | AC163: E | AD163: 1700 | AE163: 4000 | AF163: E | AG163: 420 | AH163: 980 | AI163: E | AJ163: 1200 | AK163: 2800 | AL163: E | AM163: 30 | AN163: NA | AO163: 0.1 | AP163: 0 | AQ163: 0 | AR163: 0 | AS163: 890 | AT163: X | AU163: 17 | AV163: 13100 | AW163: 15000 | AX163: X | AY163: 173.5 | AZ163: 0 | BB163: NO
A164: BUTYLBENZENE, TERT- | B164: 98-06-6 | C164: 4200 | D164: G | E164: 12000 | F164: G | G164: 30000 | H164: S | I164: 30000 | J164: S | K164: 4200 | L164: G | M164: 12000 | N164: G | O164: 10000 | P164: C | Q164: 10000 | R164: C | S164: 10000 | T164: C | U164: 420 | V164: 760 | W164: E | X164: 1200 | Y164: 2200 | Z164: E | AA164: 3000 | AB164: 5400 | AC164: E | AD164: 3000 | AE164: 5400 | AF164: E | AG164: 420 | AH164: 760 | AI164: E | AJ164: 1200 | AK164: 2200 | AL164: E | AM164: 30 | AN164: NA | AO164: 0.1 | AP164: 0 | AQ164: 0 | AR164: 0 | AS164: 680 | AT164: X | AU164: 30 | AV164: 13100 | AW164: 15000 | AX164: X | AY164: 169 | AZ164: 0 | BB164: NO
A165: BUTYLBENZYL PHTHALATE | B165: 85-68-7 | C165: 380 | D165: G | E165: 1800 | F165: G | G165: 2700 | H165: S | I165: 2700 | J165: S | K165: 2700 | L165: S | M165: 2700 | N165: S | O165: 9800 | P165: G | Q165: 10000 | R165: C | S165: 10000 | T165: C | U165: 38 | V165: 3200 | W165: E | X165: 180 | Y165: 10000 | Z165: C | AA165: 270 | AB165: 10000 | AC165: C | AD165: 270 | AE165: 10000 | AF165: C | AG165: 270 | AH165: 10000 | AI165: C | AJ165: 270 | AK165: 10000 | AL165: C | AM165: 10 | AN165: NA | AO165: 0.2 | AP165: 0.0019 | AQ165: 0 | AR165: 0 | AS165: 34000 | AU165: 2.69 | AX165: X | AY165: 370 | AZ165: 1.39 | BB165: YES
A166: CADMIUM | B166: 7440-43-9 | C166: 5 | D166: M | E166: 5 | F166: M | G166: 500 | H166: M | I166: 500 | J166: M | K166: 5000 | L166: M | M166: 5000 | N166: M | O166: 1.2 | P166: G | Q166: 6.1 | R166: G | S166: 190000 | T166: C | U166: 0.5 | V166: 38 | W166: 0 | X166: 0.5 | Y166: 38 | Z166: 0 | AA166: 50 | AB166: 3800 | AC166: 0 | AD166: 50 | AE166: 3800 | AF166: 0 | AG166: 500 | AH166: 38000 | AI166: 0 | AJ166: 500 | AK166: 38000 | AL166: 0 | AM166: 15 | AN166: NA | AO166: 0.0005 | AP166: 15 | AQ166: 1e-05 | AR166: 0.0018 | AS166: 0 | AU166: 0 | BA166: 75 | BB166: YES
A167: CALCIUM CHROMATE | B167: 13765-19-0 | C167: NA | D167: NA | E167: NA | F167: NA | G167: NA | H167: NA | I167: NA | J167: NA | K167: NA | L167: NA | M167: NA | N167: NA | O167: NA | P167: NA | Q167: NA | R167: NA | S167: NA | T167: NA | U167: NA | V167: NA | W167: NA | X167: NA | Y167: NA | Z167: NA | AA167: NA | AB167: NA | AC167: NA | AD167: NA | AE167: NA | AF167: NA | AG167: NA | AH167: NA | AI167: NA | AJ167: NA | AK167: NA | AL167: NA | AM167: NA | AN167: NA | AO167: NA | AP167: NA | AQ167: NA | AR167: NA | AS167: NA | AT167: NA | AU167: NA | AV167: NA | AW167: NA | AX167: NA | AY167: NA | AZ167: NA | BA167: NA | BB167: NO
A168: CALCIUM CYANAMIDE | B168: 156-62-7 | C168: NA | D168: NA | E168: NA | F168: NA | G168: NA | H168: NA | I168: NA | J168: NA | K168: NA | L168: NA | M168: NA | N168: NA | O168: NA | P168: NA | Q168: NA | R168: NA | S168: NA | T168: NA | U168: NA | V168: NA | W168: NA | X168: NA | Y168: NA | Z168: NA | AA168: NA | AB168: NA | AC168: NA | AD168: NA | AE168: NA | AF168: NA | AG168: NA | AH168: NA | AI168: NA | AJ168: NA | AK168: NA | AL168: NA | AM168: NA | AN168: NA | AO168: NA | AP168: NA | AQ168: NA | AR168: NA | AS168: NA | AT168: NA | AU168: NA | AV168: NA | AW168: NA | AX168: NA | AY168: NA | AZ168: NA | BA168: NA | BB168: NO
A169: CAPTAN | B169: 133-06-2 | C169: 320 | D169: G | E169: 500 | F169: S | G169: 500 | H169: S | I169: 500 | J169: S | K169: 500 | L169: S | M169: 500 | N169: S | O169: 8100 | P169: G | Q169: 40000 | R169: G | S169: 190000 | T169: C | U169: 32 | V169: 20 | W169: E | X169: 50 | Y169: 31 | Z169: E | AA169: 50 | AB169: 31 | AC169: E | AD169: 50 | AE169: 31 | AF169: E | AG169: 50 | AH169: 31 | AI169: E | AJ169: 50 | AK169: 31 | AL169: E | AM169: NA | AN169: NA | AO169: 0.13 | AP169: 0.0023 | AQ169: 0 | AR169: 6.6e-07 | AS169: 200 | AU169: 0.5 | AY169: 259 | AZ169: 589.39 | BB169: NO
A170: CARBARYL | B170: 63-25-2 | C170: 4200 | D170: G | E170: 12000 | F170: G | G170: 120000 | H170: S | I170: 120000 | J170: S | K170: 120000 | L170: S | M170: 120000 | N170: S | O170: 22000 | P170: G | Q170: 190000 | R170: C | S170: 190000 | T170: C | U170: 420 | V170: 250 | W170: E | X170: 1200 | Y170: 700 | Z170: E | AA170: 12000 | AB170: 7000 | AC170: E | AD170: 12000 | AE170: 7000 | AF170: E | AG170: 12000 | AH170: 7000 | AI170: E | AJ170: 12000 | AK170: 7000 | AL170: E | AM170: NA | AN170: NA | AO170: 0.1 | AP170: 0 | AQ170: 0 | AR170: 0 | AS170: 190 | AU170: 120 | AY170: 315 | AZ170: 4.22 | BB170: NO
A171: CARBAZOLE | B171: 86-74-8 | C171: 37 | D171: G | E171: 170 | F171: G | G171: 1200 | H171: S | I171: 1200 | J171: S | K171: 37 | L171: G | M171: 170 | N171: G | O171: 930 | P171: G | Q171: 4600 | R171: G | S171: 190000 | T171: C | U171: 3.7 | V171: 24 | W171: E | X171: 17 | Y171: 110 | Z171: E | AA171: 120 | AB171: 760 | AC171: E | AD171: 120 | AE171: 760 | AF171: E | AG171: 4 | AH171: 24 | AI171: E | AJ171: 17 | AK171: 110 | AL171: E | AM171: 15 | AN171: NA | AO171: 0 | AP171: 0.02 | AQ171: 0 | AR171: 0 | AS171: 2500 | AU171: 1.2 | AY171: 355 | AZ171: 0 | BB171: NO
A172: CARBOFURAN | B172: 1563-66-2 | C172: 40 | D172: M | E172: 40 | F172: M | G172: 4000 | H172: M | I172: 4000 | J172: M | K172: 40 | L172: M | M172: 40 | N172: M | O172: 1100 | P172: G | Q172: 16000 | R172: G | S172: 190000 | T172: C | U172: 4 | V172: 0.87 | W172: E | X172: 4 | Y172: 0.87 | Z172: E | AA172: 400 | AB172: 87 | AC172: E | AD172: 400 | AE172: 87 | AF172: E | AG172: 4 | AH172: 0.87 | AI172: E | AJ172: 4 | AK172: 0.87 | AL172: E | AM172: NA | AN172: NA | AO172: 0.005 | AP172: 0 | AQ172: 0 | AR172: 0 | AS172: 43 | AU172: 700 | AY172: 311 | AZ172: 0 | BB172: NO
A173: CARBON DISULFIDE | B173: 75-15-0 | C173: 1500 | D173: N | E173: 6200 | F173: N | G173: 150000 | H173: N | I173: 620000 | J173: N | K173: 1500 | L173: N | M173: 6200 | N173: N | O173: 10000 | P173: C | Q173: 10000 | R173: C | S173: 10000 | T173: C | U173: 150 | V173: 130 | W173: E | X173: 620 | Y173: 530 | Z173: E | AA173: 10000 | AB173: 10000 | AC173: C | AD173: 10000 | AE173: 10000 | AF173: C | AG173: 150 | AH173: 130 | AI173: E | AJ173: 620 | AK173: 530 | AL173: E | AM173: NA | AN173: NA | AO173: 0.1 | AP173: 0 | AQ173: 0.7 | AR173: 0 | AS173: 300 | AT173: X | AU173: 2100 | AV173: 13100 | AW173: 15100 | AX173: X | AY173: 46.2 | AZ173: 0 | BB173: NO
A174: CARBON TETRACHLORIDE | B174: 56-23-5 | C174: 5 | D174: M | E174: 5 | F174: M | G174: 500 | H174: M | I174: 500 | J174: M | K174: 50 | L174: M | M174: 50 | N174: M | O174: 74 | P174: N | Q174: 370 | R174: N | S174: 430 | T174: N | U174: 0.5 | V174: 0.26 | W174: E | X174: 0.5 | Y174: 0.26 | Z174: E | AA174: 50 | AB174: 26 | AC174: E | AD174: 50 | AE174: 26 | AF174: E | AG174: 5 | AH174: 2.6 | AI174: E | AJ174: 5 | AK174: 2.6 | AL174: E | AM174: NA | AN174: NA | AO174: 0.004 | AP174: 0.07 | AQ174: 0.1 | AR174: 6e-06 | AS174: 160 | AT174: X | AU174: 795 | AV174: 13100 | AW174: 15000 | AX174: X | AY174: 76.7 | AZ174: 0.07 | BB174: YES
A175: CARBONYL FLUORIDE | B175: 353-50-4 | C175: NA | D175: NA | E175: NA | F175: NA | G175: NA | H175: NA | I175: NA | J175: NA | K175: NA | L175: NA | M175: NA | N175: NA | O175: NA | P175: NA | Q175: NA | R175: NA | S175: NA | T175: NA | U175: NA | V175: NA | W175: NA | X175: NA | Y175: NA | Z175: NA | AA175: NA | AB175: NA | AC175: NA | AD175: NA | AE175: NA | AF175: NA | AG175: NA | AH175: NA | AI175: NA | AJ175: NA | AK175: NA | AL175: NA | AM175: NA | AN175: NA | AO175: NA | AP175: NA | AQ175: NA | AR175: NA | AS175: NA | AT175: NA | AU175: NA | AV175: NA | AW175: NA | AX175: NA | AY175: NA | AZ175: NA | BA175: NA | BB175: NO
A176: CARBOXIN | B176: 5234-68-4 | C176: 700 | D176: H | E176: 700 | F176: H | G176: 70000 | H176: H | I176: 70000 | J176: H | K176: 700 | L176: H | M176: 700 | N176: H | O176: 22000 | P176: G | Q176: 190000 | R176: C | S176: 190000 | T176: C | U176: 70 | V176: 53 | W176: E | X176: 70 | Y176: 53 | Z176: E | AA176: 7000 | AB176: 5300 | AC176: E | AD176: 7000 | AE176: 5300 | AF176: E | AG176: 70 | AH176: 53 | AI176: E | AJ176: 70 | AK176: 53 | AL176: E | AM176: NA | AN176: NA | AO176: 0.1 | AP176: 0 | AQ176: 0 | AR176: 0 | AS176: 260 | AU176: 170 | AY176: 407 | AZ176: 0 | BB176: NO
A177: CATECHOL | B177: 120-80-9 | C177: NA | D177: NA | E177: NA | F177: NA | G177: NA | H177: NA | I177: NA | J177: NA | K177: NA | L177: NA | M177: NA | N177: NA | O177: NA | P177: NA | Q177: NA | R177: NA | S177: NA | T177: NA | U177: NA | V177: NA | W177: NA | X177: NA | Y177: NA | Z177: NA | AA177: NA | AB177: NA | AC177: NA | AD177: NA | AE177: NA | AF177: NA | AG177: NA | AH177: NA | AI177: NA | AJ177: NA | AK177: NA | AL177: NA | AM177: NA | AN177: NA | AO177: NA | AP177: NA | AQ177: NA | AR177: NA | AS177: NA | AT177: NA | AU177: NA | AV177: NA | AW177: NA | AX177: NA | AY177: NA | AZ177: NA | BA177: NA | BB177: NO
A178: CHLORAMBEN | B178: 133-90-4 | C178: 100 | D178: H | E178: 100 | F178: H | G178: 10000 | H178: H | I178: 10000 | J178: H | K178: 100 | L178: H | M178: 100 | N178: H | O178: 3300 | P178: G | Q178: 48000 | R178: G | S178: 190000 | T178: C | U178: 10 | V178: 1.6 | W178: E | X178: 10 | Y178: 1.6 | Z178: E | AA178: 1000 | AB178: 160 | AC178: E | AD178: 1000 | AE178: 160 | AF178: E | AG178: 10 | AH178: 1.6 | AI178: E | AJ178: 10 | AK178: 1.6 | AL178: E | AM178: NA | AN178: NA | AO178: 0.015 | AP178: 0 | AQ178: 0 | AR178: 0 | AS178: 20 | AU178: 700 | AY178: 210 | AZ178: 0 | BB178: NO
A179: CHLORDANE | B179: 57-74-9 | C179: 2 | D179: M | E179: 2 | F179: M | G179: 56 | H179: S | I179: 56 | J179: S | K179: 56 | L179: S | M179: 56 | N179: S | O179: 53 | P179: G | Q179: 260 | R179: G | S179: 190000 | T179: C | U179: 0.2 | V179: 49 | W179: E | X179: 0.2 | Y179: 49 | Z179: E | AA179: 5.6 | AB179: 1400 | AC179: E | AD179: 5.6 | AE179: 1400 | AF179: E | AG179: 5.6 | AH179: 1400 | AI179: E | AJ179: 5.6 | AK179: 1400 | AL179: E | AM179: 10 | AN179: NA | AO179: 0.0005 | AP179: 0.35 | AQ179: 0.0007 | AR179: 0.0001 | AS179: 98000 | AU179: 0.056 | AY179: 351 | AZ179: 0.09 | BB179: YES
A180: CHLORIDE | B180: 7647-14-5 | C180: NA | D180: NA | E180: NA | F180: NA | G180: NA | H180: NA | I180: NA | J180: NA | K180: NA | L180: NA | M180: NA | N180: NA | O180: NA | P180: NA | Q180: NA | R180: NA | S180: NA | T180: NA | U180: NA | V180: NA | W180: NA | X180: NA | Y180: NA | Z180: NA | AA180: NA | AB180: NA | AC180: NA | AD180: NA | AE180: NA | AF180: NA | AG180: NA | AH180: NA | AI180: NA | AJ180: NA | AK180: NA | AL180: NA | AM180: NA | AN180: 250000 | AO180: NA | AP180: NA | AQ180: NA | AR180: NA | AS180: NA | AT180: NA | AU180: NA | AV180: NA | AW180: NA | AX180: NA | AY180: NA | AZ180: NA | BA180: NA | BB180: NO
A181: CHLORO-1,1-DIFLUOROETHANE, 1- | B181: 75-68-3 | C181: 110000 | D181: N | E181: 440000 | F181: N | G181: 1400000 | H181: S | I181: 1400000 | J181: S | K181: 110000 | L181: N | M181: 440000 | N181: N | O181: 10000 | P181: C | Q181: 10000 | R181: C | S181: 10000 | T181: C | U181: 10000 | V181: 1800 | W181: E | X181: 10000 | Y181: 7300 | Z181: E | AA181: 10000 | AB181: 10000 | AC181: C | AD181: 10000 | AE181: 10000 | AF181: C | AG181: 10000 | AH181: 1800 | AI181: E | AJ181: 10000 | AK181: 7300 | AL181: E | AM181: NA | AN181: NA | AO181: 0 | AP181: 0 | AQ181: 50 | AR181: 0 | AS181: 22 | AT181: X | AU181: 1400 | AV181: 13100 | AW181: 15000 | AX181: X | AY181: -9.2 | AZ181: 0 | BB181: NO
A182: CHLORO-1-PROPENE, 3- (ALLYL CHLORIDE) | B182: 107-05-1 | C182: 2.1 | D182: N | E182: 8.8 | F182: N | G182: 210 | H182: N | I182: 880 | J182: N | K182: 210 | L182: N | M182: 880 | N182: N | O182: 19 | P182: N | Q182: 80 | R182: N | S182: 91 | T182: N | U182: 0.21 | V182: 0.049 | W182: E | X182: 0.88 | Y182: 0.2 | Z182: E | AA182: 21 | AB182: 4.9 | AC182: E | AD182: 88 | AE182: 20 | AF182: E | AG182: 21 | AH182: 4.9 | AI182: E | AJ182: 88 | AK182: 20 | AL182: E | AM182: NA | AN182: NA | AO182: 0 | AP182: 0.021 | AQ182: 0.001 | AR182: 6e-06 | AS182: 48 | AT182: X | AU182: 3300 | AV182: 13100 | AW182: 15000 | AX182: X | AY182: 45.1 | AZ182: 18.07 | BB182: NO
A183: CHLOROACETALDEHYDE | B183: 107-20-0 | C183: 2.4 | D183: G | E183: 11 | F183: G | G183: 240 | H183: G | I183: 1100 | J183: G | K183: 2.4 | L183: G | M183: 11 | N183: G | O183: 62 | P183: G | Q183: 300 | R183: G | S183: 10000 | T183: C | U183: 0.24 | V183: 0.029 | W183: E | X183: 1.1 | Y183: 0.13 | Z183: E | AA183: 24 | AB183: 2.9 | AC183: E | AD183: 110 | AE183: 13 | AF183: E | AG183: 0.24 | AH183: 0.029 | AI183: E | AJ183: 1.1 | AK183: 0.1 | AL183: E | AM183: NA | AN183: NA | AO183: 0 | AP183: 0.3 | AQ183: 0 | AR183: 0 | AS183: 3.24 | AT183: X | AU183: 1000000 | AV183: 13000 | AW183: 14900 | AX183: X | AY183: 85 | AZ183: 0 | BB183: NO
A184: CHLOROACETOPHENONE, 2- | B184: 532-27-4 | C184: 1.3 | D184: G | E184: 3.5 | F184: G | G184: 130 | H184: G | I184: 350 | J184: G | K184: 1300 | L184: G | M184: 3500 | N184: G | O184: 190000 | P184: C | Q184: 190000 | R184: C | S184: 190000 | T184: C | U184: 0.13 | V184: 0.039 | W184: E | X184: 0.35 | Y184: 0.11 | Z184: E | AA184: 13 | AB184: 3.9 | AC184: E | AD184: 35 | AE184: 11 | AF184: E | AG184: 130 | AH184: 39 | AI184: E | AJ184: 350 | AK184: 110 | AL184: E | AM184: NA | AN184: NA | AO184: 0 | AP184: 0 | AQ184: 3e-05 | AR184: 0 | AS184: 76 | AU184: 1100 | AY184: 247 | AZ184: 4.5 | BB184: NO
A185: CHLOROANILINE, P- | B185: 106-47-8 | C185: 3.7 | D185: G | E185: 17 | F185: G | G185: 370 | H185: G | I185: 1700 | J185: G | K185: 3.7 | L185: G | M185: 17 | N185: G | O185: 93 | P185: G | Q185: 460 | R185: G | S185: 190000 | T185: C | U185: 0.37 | V185: 0.47 | W185: E | X185: 1.7 | Y185: 2.1 | Z185: E | AA185: 37 | AB185: 47 | AC185: E | AD185: 170 | AE185: 210 | AF185: E | AG185: 0.37 | AH185: 0.47 | AI185: E | AJ185: 1.7 | AK185: 2.1 | AL185: E | AM185: NA | AN185: NA | AO185: 0.004 | AP185: 0.2 | AQ185: 0 | AR185: 0 | AS185: 460 | AU185: 3900 | AY185: 232 | AZ185: 0 | BB185: NO
A186: CHLOROBENZENE | B186: 108-90-7 | C186: 100 | D186: M | E186: 100 | F186: M | G186: 10000 | H186: M | I186: 10000 | J186: M | K186: 10000 | L186: M | M186: 10000 | N186: M | O186: 960 | P186: N | Q186: 4000 | R186: N | S186: 4600 | T186: N | U186: 10 | V186: 6.1 | W186: E | X186: 10 | Y186: 6.1 | Z186: E | AA186: 1000 | AB186: 610 | AC186: E | AD186: 1000 | AE186: 610 | AF186: E | AG186: 1000 | AH186: 610 | AI186: E | AJ186: 1000 | AK186: 610 | AL186: E | AM186: NA | AN186: NA | AO186: 0.02 | AP186: 0 | AQ186: 0.05 | AR186: 0 | AS186: 200 | AT186: X | AU186: 490 | AV186: 13100 | AW186: 15000 | AX186: X | AY186: 131.69 | AZ186: 0.84 | BB186: YES
A187: CHLOROBENZILATE | B187: 510-15-6 | C187: 6.6 | D187: G | E187: 31 | F187: G | G187: 660 | H187: G | I187: 3100 | J187: G | K187: 6600 | L187: G | M187: 13000 | N187: S | O187: 170 | P187: G | Q187: 830 | R187: G | S187: 190000 | T187: C | U187: 0.66 | V187: 4.4 | W187: E | X187: 3.1 | Y187: 20 | Z187: E | AA187: 66 | AB187: 440 | AC187: E | AD187: 310 | AE187: 2000 | AF187: E | AG187: 660 | AH187: 4400 | AI187: E | AJ187: 1300 | AK187: 8600 | AL187: E | AM187: 15 | AN187: NA | AO187: 0.02 | AP187: 0.11 | AQ187: 0 | AR187: 3.1e-05 | AS187: 2600 | AU187: 13 | AY187: 415 | AZ187: 3.6 | BB187: NO
A188: CHLOROBUTANE, 1- | B188: 109-69-3 | C188: 1700 | D188: G | E188: 4700 | F188: G | G188: 170000 | H188: G | I188: 470000 | J188: G | K188: 1700 | L188: G | M188: 4700 | N188: G | O188: 8800 | P188: G | Q188: 10000 | R188: C | S188: 10000 | T188: C | U188: 170 | V188: 270 | W188: E | X188: 470 | Y188: 730 | Z188: E | AA188: 10000 | AB188: 10000 | AC188: C | AD188: 10000 | AE188: 10000 | AF188: C | AG188: 170 | AH188: 270 | AI188: E | AJ188: 470 | AK188: 730 | AL188: E | AM188: 30 | AN188: NA | AO188: 0.04 | AP188: 0 | AQ188: 0 | AR188: 0 | AS188: 580 | AT188: X | AU188: 680 | AV188: 13200 | AW188: 15000 | AX188: X | AY188: 78.5 | AZ188: 0 | BB188: NO
A189: CHLORODIBROMOMETHANE (THM) | B189: 124-48-1 | C189: 80 | D189: M | E189: 80 | F189: M | G189: 8000 | H189: M | I189: 8000 | J189: M | K189: 8000 | L189: M | M189: 8000 | N189: M | O189: 17 | P189: N | Q189: 82 | R189: N | S189: 95 | T189: N | U189: 8 | V189: 2.5 | W189: E | X189: 8 | Y189: 2.5 | Z189: E | AA189: 800 | AB189: 250 | AC189: E | AD189: 800 | AE189: 250 | AF189: E | AG189: 800 | AH189: 250 | AI189: E | AJ189: 800 | AK189: 250 | AL189: E | AM189: NA | AN189: NA | AO189: 0.02 | AP189: 0.084 | AQ189: 0 | AR189: 2.7e-05 | AS189: 83 | AT189: X | AU189: 4200 | AV189: 13100 | AW189: 15100 | AX189: X | AY189: 116 | AZ189: 1.39 | BB189: NO
A190: CHLORODIFLUOROMETHANE | B190: 75-45-6 | C190: 110000 | D190: N | E190: 440000 | F190: N | G190: 2900000 | H190: S | I190: 2900000 | J190: S | K190: 110000 | L190: N | M190: 440000 | N190: N | O190: 10000 | P190: C | Q190: 10000 | R190: C | S190: 10000 | T190: C | U190: 10000 | V190: 2800 | W190: E | X190: 10000 | Y190: 10000 | Z190: C | AA190: 10000 | AB190: 10000 | AC190: C | AD190: 10000 | AE190: 10000 | AF190: C | AG190: 10000 | AH190: 2800 | AI190: E | AJ190: 10000 | AK190: 10000 | AL190: C | AM190: NA | AN190: NA | AO190: 0 | AP190: 0 | AQ190: 50 | AR190: 0 | AS190: 59 | AT190: X | AU190: 2899 | AV190: 13200 | AW190: 15000 | AX190: X | AY190: -40.8 | AZ190: 0 | BB190: NO
A191: CHLOROETHANE | B191: 75-00-3 | C191: 250 | D191: G | E191: 1200 | F191: G | G191: 25000 | H191: G | I191: 120000 | J191: G | K191: 25000 | L191: G | M191: 120000 | N191: G | O191: 6400 | P191: G | Q191: 10000 | R191: C | S191: 10000 | T191: C | U191: 25 | V191: 5.4 | W191: E | X191: 120 | Y191: 26 | Z191: E | AA191: 2500 | AB191: 540 | AC191: E | AD191: 10000 | AE191: 2600 | AF191: E | AG191: 2500 | AH191: 540 | AI191: E | AJ191: 10000 | AK191: 2600 | AL191: E | AM191: NA | AN191: NA | AO191: 0.4 | AP191: 0.0029 | AQ191: 10 | AR191: 0 | AS191: 42 | AT191: X | AU191: 5700 | AV191: 13100 | AW191: 15000 | AX191: X | AY191: 12.27 | AZ191: 4.5 | BB191: NO
A192: CHLOROETHYL VINYL ETHER, 2- | B192: 110-75-8 | C192: NA | D192: NA | E192: NA | F192: NA | G192: NA | H192: NA | I192: NA | J192: NA | K192: NA | L192: NA | M192: NA | N192: NA | O192: NA | P192: NA | Q192: NA | R192: NA | S192: NA | T192: NA | U192: NA | V192: NA | W192: NA | X192: NA | Y192: NA | Z192: NA | AA192: NA | AB192: NA | AC192: NA | AD192: NA | AE192: NA | AF192: NA | AG192: NA | AH192: NA | AI192: NA | AJ192: NA | AK192: NA | AL192: NA | AM192: NA | AN192: NA | AO192: NA | AP192: NA | AQ192: NA | AR192: NA | AS192: NA | AT192: NA | AU192: NA | AV192: NA | AW192: NA | AX192: NA | AY192: NA | AZ192: NA | BA192: NA | BB192: NO
A193: CHLOROFORM (THM) | B193: 67-66-3 | C193: 80 | D193: M | E193: 80 | F193: M | G193: 8000 | H193: M | I193: 8000 | J193: M | K193: 800 | L193: M | M193: 800 | N193: M | O193: 19 | P193: N | Q193: 97 | R193: N | S193: 110 | T193: N | U193: 8 | V193: 2 | W193: E | X193: 8 | Y193: 2 | Z193: E | AA193: 800 | AB193: 200 | AC193: E | AD193: 800 | AE193: 200 | AF193: E | AG193: 80 | AH193: 20 | AI193: E | AJ193: 80 | AK193: 20 | AL193: E | AM193: NA | AN193: NA | AO193: 0.01 | AP193: 0.019 | AQ193: 0.098 | AR193: 2.3e-05 | AS193: 56 | AT193: X | AU193: 8000 | AV193: 13100 | AW193: 15000 | AX193: X | AY193: 61.18 | AZ193: 0.01 | BB193: NO
A194: CHLORONAPHTHALENE, 2- | B194: 91-58-7 | C194: 3300 | D194: G | E194: 9300 | F194: G | G194: 12000 | H194: S | I194: 12000 | J194: S | K194: 3300 | L194: G | M194: 9300 | N194: G | O194: 18000 | P194: G | Q194: 190000 | R194: C | S194: 190000 | T194: C | U194: 330 | V194: 7000 | W194: E | X194: 930 | Y194: 20000 | Z194: E | AA194: 1200 | AB194: 26000 | AC194: E | AD194: 1200 | AE194: 26000 | AF194: E | AG194: 330 | AH194: 7000 | AI194: E | AJ194: 930 | AK194: 20000 | AL194: E | AM194: 15 | AN194: NA | AO194: 0.08 | AP194: 0 | AQ194: 0 | AR194: 0 | AS194: 8500 | AU194: 11.7 | AY194: 256 | AZ194: 0 | BB194: NO
A195: CHLORONITROBENZENE, P- | B195: 100-00-5 | C195: 42 | D195: G | E195: 120 | F195: G | G195: 4200 | H195: G | I195: 12000 | J195: G | K195: 42 | L195: G | M195: 120 | N195: G | O195: 220 | P195: G | Q195: 3200 | R195: G | S195: 190000 | T195: C | U195: 4.2 | V195: 5.5 | W195: E | X195: 12 | Y195: 16 | Z195: E | AA195: 420 | AB195: 550 | AC195: E | AD195: 1200 | AE195: 1600 | AF195: E | AG195: 4.2 | AH195: 5.5 | AI195: E | AJ195: 12 | AK195: 16 | AL195: E | AM195: NA | AN195: NA | AO195: 0.001 | AP195: 0.0063 | AQ195: 0.0006 | AR195: 0 | AS195: 480 | AU195: 220 | AY195: 242 | AZ195: 0 | BB195: NO
A196: CHLOROPHENOL, 2- | B196: 95-57-8 | C196: 40 | D196: H | E196: 40 | F196: H | G196: 4000 | H196: H | I196: 4000 | J196: H | K196: 40 | L196: H | M196: 40 | N196: H | O196: 1100 | P196: G | Q196: 10000 | R196: C | S196: 10000 | T196: C | U196: 4 | V196: 4.4 | W196: E | X196: 4 | Y196: 4.4 | Z196: E | AA196: 400 | AB196: 440 | AC196: E | AD196: 400 | AE196: 440 | AF196: E | AG196: 4 | AH196: 4.4 | AI196: E | AJ196: 4 | AK196: 4.4 | AL196: E | AM196: NA | AN196: NA | AO196: 0.005 | AP196: 0 | AQ196: 0 | AR196: 0 | AS196: 400 | AT196: X | AU196: 24000 | AV196: 12900 | AW196: 14900 | AX196: X | AY196: 174.9 | AZ196: 0 | BB196: NO
A197: CHLOROPHENYL PHENYL ETHER, 4- | B197: 7005-72-3 | C197: NA | D197: NA | E197: NA | F197: NA | G197: NA | H197: NA | I197: NA | J197: NA | K197: NA | L197: NA | M197: NA | N197: NA | O197: NA | P197: NA | Q197: NA | R197: NA | S197: NA | T197: NA | U197: NA | V197: NA | W197: NA | X197: NA | Y197: NA | Z197: NA | AA197: NA | AB197: NA | AC197: NA | AD197: NA | AE197: NA | AF197: NA | AG197: NA | AH197: NA | AI197: NA | AJ197: NA | AK197: NA | AL197: NA | AM197: NA | AN197: NA | AO197: NA | AP197: NA | AQ197: NA | AR197: NA | AS197: NA | AT197: NA | AU197: NA | AV197: NA | AW197: NA | AX197: NA | AY197: NA | AZ197: NA | BA197: NA | BB197: NO
A198: CHLOROPRENE | B198: 126-99-8 | C198: 0.16 | D198: N | E198: 0.83 | F198: N | G198: 16 | H198: N | I198: 83 | J198: N | K198: 16 | L198: N | M198: 83 | N198: N | O198: 1.5 | P198: N | Q198: 7.4 | R198: N | S198: 8.5 | T198: N | U198: 0.016 | V198: 0.0038 | W198: E | X198: 0.083 | Y198: 0.02 | Z198: E | AA198: 1.6 | AB198: 0.38 | AC198: E | AD198: 8.3 | AE198: 2 | AF198: E | AG198: 1.6 | AH198: 0.38 | AI198: E | AJ198: 8.3 | AK198: 2 | AL198: E | AM198: NA | AN198: NA | AO198: 0.02 | AP198: 0 | AQ198: 0.02 | AR198: 0.0003 | AS198: 50 | AT198: X | AU198: 1736 | AV198: 13100 | AW198: 15000 | AX198: X | AY198: 59.4 | AZ198: 0.69 | BB198: NO
A199: CHLOROPROPANE, 2- | B199: 75-29-6 | C199: 210 | D199: N | E199: 880 | F199: N | G199: 21000 | H199: N | I199: 88000 | J199: N | K199: 210 | L199: N | M199: 880 | N199: N | O199: 1900 | P199: N | Q199: 8000 | R199: N | S199: 9100 | T199: N | U199: 21 | V199: 16 | W199: E | X199: 88 | Y199: 67 | Z199: E | AA199: 2100 | AB199: 1600 | AC199: E | AD199: 8800 | AE199: 6700 | AF199: E | AG199: 21 | AH199: 16 | AI199: E | AJ199: 88 | AK199: 67 | AL199: E | AM199: NA | AN199: NA | AO199: 0 | AP199: 0 | AQ199: 0.1 | AR199: 0 | AS199: 260 | AT199: X | AU199: 3100 | AV199: 13200 | AW199: 15000 | AX199: X | AY199: 47.2 | AZ199: 0 | BB199: NO
A200: CHLOROTHALONIL | B200: 1897-45-6 | C200: 240 | D200: G | E200: 600 | F200: S | G200: 600 | H200: S | I200: 600 | J200: S | K200: 240 | L200: G | M200: 600 | N200: S | O200: 3300 | P200: G | Q200: 29000 | R200: G | S200: 190000 | T200: C | U200: 24 | V200: 61 | W200: E | X200: 60 | Y200: 150 | Z200: E | AA200: 60 | AB200: 150 | AC200: E | AD200: 60 | AE200: 150 | AF200: E | AG200: 24 | AH200: 61 | AI200: E | AJ200: 60 | AK200: 150 | AL200: E | AM200: 30 | AN200: NA | AO200: 0.015 | AP200: 0.0031 | AQ200: 0 | AR200: 8.9e-07 | AS200: 980 | AU200: 0.6 | AY200: 350 | AZ200: 0 | BB200: NO
A201: CHLOROTOLUENE, O- | B201: 95-49-8 | C201: 100 | D201: H | E201: 100 | F201: H | G201: 10000 | H201: H | I201: 10000 | J201: H | K201: 100 | L201: H | M201: 100 | N201: H | O201: 4400 | P201: G | Q201: 10000 | R201: C | S201: 10000 | T201: C | U201: 10 | V201: 20 | W201: E | X201: 10 | Y201: 20 | Z201: E | AA201: 1000 | AB201: 2000 | AC201: E | AD201: 1000 | AE201: 2000 | AF201: E | AG201: 10 | AH201: 20 | AI201: E | AJ201: 10 | AK201: 20 | AL201: E | AM201: 30 | AN201: NA | AO201: 0.02 | AP201: 0 | AQ201: 0 | AR201: 0 | AS201: 760 | AT201: X | AU201: 422 | AV201: 13100 | AW201: 15000 | AX201: X | AY201: 158.97 | AZ201: 0 | BB201: NO
A202: CHLOROTOLUENE, P- | B202: 106-43-4 | C202: 100 | D202: H | E202: 100 | F202: H | G202: 10000 | H202: H | I202: 10000 | J202: H | K202: 100 | L202: H | M202: 100 | N202: H | O202: 4400 | P202: G | Q202: 10000 | R202: C | S202: 10000 | T202: C | U202: 10 | V202: 10 | W202: E | X202: 10 | Y202: 10 | Z202: E | AA202: 1000 | AB202: 1000 | AC202: E | AD202: 1000 | AE202: 1000 | AF202: E | AG202: 10 | AH202: 10 | AI202: E | AJ202: 10 | AK202: 10 | AL202: E | AM202: NA | AN202: NA | AO202: 0.02 | AP202: 0 | AQ202: 0 | AR202: 0 | AS202: 375 | AT202: X | AU202: 106 | AV202: 13000 | AW202: 14900 | AX202: X | AY202: 162 | AZ202: 0 | BB202: NO
A203: CHLORPYRIFOS | B203: 2921-88-2 | C203: 2 | D203: H | E203: 2 | F203: H | G203: 200 | H203: H | I203: 200 | J203: H | K203: 2 | L203: H | M203: 2 | N203: H | O203: 220 | P203: G | Q203: 3200 | R203: G | S203: 190000 | T203: C | U203: 0.2 | V203: 2.3 | W203: E | X203: 0.2 | Y203: 2.3 | Z203: E | AA203: 20 | AB203: 230 | AC203: E | AD203: 20 | AE203: 230 | AF203: E | AG203: 0.2 | AH203: 2.3 | AI203: E | AJ203: 0.2 | AK203: 2.3 | AL203: E | AM203: 15 | AN203: NA | AO203: 0.001 | AP203: 0 | AQ203: 0 | AR203: 0 | AS203: 4600 | AU203: 1.12 | AY203: 377 | AZ203: 0 | BB203: NO
A204: CHLORSULFURON | B204: 64902-72-3 | C204: 2100 | D204: G | E204: 5800 | F204: G | G204: 190000 | H204: S | I204: 190000 | J204: S | K204: 2100 | L204: G | M204: 5800 | N204: G | O204: 11000 | P204: G | Q204: 160000 | R204: G | S204: 190000 | T204: C | U204: 210 | V204: 29 | W204: E | X204: 580 | Y204: 80 | Z204: E | AA204: 19000 | AB204: 2600 | AC204: E | AD204: 19000 | AE204: 2600 | AF204: E | AG204: 210 | AH204: 29 | AI204: E | AJ204: 580 | AK204: 80 | AL204: E | AM204: NA | AN204: NA | AO204: 0.05 | AP204: 0 | AQ204: 0 | AR204: 0 | AS204: 11 | AU204: 192 | AY204: 531 | AZ204: 0 | BB204: NO
A205: CHLORTHAL-DIMETHYL (DACTHAL) (DCPA) | B205: 1861-32-1 | C205: 70 | D205: H | E205: 70 | F205: H | G205: 500 | H205: S | I205: 500 | J205: S | K205: 500 | L205: S | M205: 500 | N205: S | O205: 2200 | P205: G | Q205: 32000 | R205: G | S205: 190000 | T205: C | U205: 7 | V205: 110 | W205: E | X205: 7 | Y205: 110 | Z205: E | AA205: 50 | AB205: 820 | AC205: E | AD205: 50 | AE205: 820 | AF205: E | AG205: 50 | AH205: 820 | AI205: E | AJ205: 50 | AK205: 820 | AL205: E | AM205: 15 | AN205: NA | AO205: 0.01 | AP205: 0 | AQ205: 0 | AR205: 0 | AS205: 6500 | AU205: 0.5 | AY205: 360 | AZ205: 1.37 | BB205: NO
A206: CHROMIUM (III) | B206: 16065-83-1 | C206: 100 | D206: M | E206: 100 | F206: M | G206: 10000 | H206: M | I206: 10000 | J206: M | K206: 100000 | L206: M | M206: 100000 | N206: M | O206: 190000 | P206: C | Q206: 190000 | R206: C | S206: 190000 | T206: C | U206: 10 | V206: 190000 | W206: 0 | X206: 10 | Y206: 190000 | Z206: 0 | AA206: 1000 | AB206: 190000 | AC206: 0 | AD206: 1000 | AE206: 190000 | AF206: 0 | AG206: 10000 | AH206: 190000 | AI206: 0 | AJ206: 10000 | AK206: 190000 | AL206: 0 | AM206: 5 | AN206: NA | AO206: 1.5 | AP206: 0 | AQ206: 0 | AR206: 0 | AS206: 0 | AU206: 0 | BA206: 1800000 | BB206: YES
A207: CHROMIUM (TOTAL) | B207: 7440-47-3 | C207: 100 | D207: M | E207: 100 | F207: M | G207: 10000 | H207: M | I207: 10000 | J207: M | K207: 100000 | L207: M | M207: 100000 | N207: M | O207: NA | P207: NA | Q207: NA | R207: NA | S207: NA | T207: NA | U207: NA | V207: NA | W207: NA | X207: NA | Y207: NA | Z207: NA | AA207: NA | AB207: NA | AC207: NA | AD207: NA | AE207: NA | AF207: NA | AG207: NA | AH207: NA | AI207: NA | AJ207: NA | AK207: NA | AL207: NA | AM207: NA | AN207: NA | AO207: NA | AP207: NA | AQ207: NA | AR207: NA | AS207: NA | AT207: NA | AU207: NA | AV207: NA | AW207: NA | AX207: NA | AY207: NA | AZ207: NA | BA207: NA | BB207: YES
A208: CHROMIUM (VI) | B208: 18540-29-9 | C208: 100 | D208: M | E208: 100 | F208: M | G208: 10000 | H208: M | I208: 10000 | J208: M | K208: 100000 | L208: M | M208: 100000 | N208: M | O208: 4 | P208: G | Q208: 220 | R208: G | S208: 20000 | T208: N | U208: 10 | V208: 190 | W208: 0 | X208: 10 | Y208: 190 | Z208: 0 | AA208: 1000 | AB208: 19000 | AC208: 0 | AD208: 1000 | AE208: 19000 | AF208: 0 | AG208: 10000 | AH208: 190000 | AI208: 0 | AJ208: 10000 | AK208: 190000 | AL208: 0 | AM208: 15 | AN208: NA | AO208: 0.003 | AP208: 0.42 | AQ208: 8e-06 | AR208: 0.084 | AS208: 0 | AU208: 0 | BA208: 19 | BB208: YES
A209: CHRYSENE | B209: 218-01-9 | C209: 1.9 | D209: G | E209: 1.9 | F209: S | G209: 1.9 | H209: S | I209: 1.9 | J209: S | K209: 1.9 | L209: S | M209: 1.9 | N209: S | O209: 35 | P209: G | Q209: 760 | R209: G | S209: 190000 | T209: C | U209: 0.19 | V209: 230 | W209: E | X209: 0.19 | Y209: 230 | Z209: E | AA209: 0.19 | AB209: 230 | AC209: E | AD209: 0.19 | AE209: 230 | AF209: E | AG209: 0.19 | AH209: 230 | AI209: E | AJ209: 0.19 | AK209: 230 | AL209: E | AM209: 5 | AN209: NA | AO209: 0 | AP209: 0.12 | AQ209: 0 | AR209: 1.1e-05 | AS209: 490000 | AU209: 0.0019 | AY209: 448 | AZ209: 0.13 | BB209: YES
A210: COBALT | B210: 7440-48-4 | C210: 13 | D210: G | E210: 35 | F210: G | G210: 1300 | H210: G | I210: 3500 | J210: G | K210: 13000 | L210: G | M210: 35000 | N210: G | O210: 66 | P210: G | Q210: 960 | R210: G | S210: 190000 | T210: N | U210: 1.3 | V210: 59 | W210: 0 | X210: 3.5 | Y210: 160 | Z210: 0 | AA210: 130 | AB210: 5900 | AC210: 0 | AD210: 350 | AE210: 16000 | AF210: 0 | AG210: 1300 | AH210: 59000 | AI210: 0 | AJ210: 3500 | AK210: 160000 | AL210: 0 | AM210: 15 | AN210: NA | AO210: 0.0003 | AP210: 0 | AQ210: 6e-06 | AR210: 0.009 | AS210: 0 | AU210: 0 | BA210: 45 | BB210: YES
A211: COPPER | B211: 7440-50-8 | C211: 1000 | D211: M | E211: 1000 | F211: M | G211: 100000 | H211: M | I211: 100000 | J211: M | K211: 1000000 | L211: M | M211: 1000000 | N211: M | O211: 8100 | P211: G | Q211: 120000 | R211: G | S211: 190000 | T211: C | U211: 100 | V211: 43000 | W211: 0 | X211: 100 | Y211: 43000 | Z211: 0 | AA211: 10000 | AB211: 190000 | AC211: 0 | AD211: 10000 | AE211: 190000 | AF211: 0 | AG211: 100000 | AH211: 190000 | AI211: 0 | AJ211: 100000 | AK211: 190000 | AL211: 0 | AM211: 10 | AN211: 1000 | AO211: 0.037 | AP211: 0 | AQ211: 0 | AR211: 0 | AS211: 0 | AU211: 0 | BA211: 430 | BB211: YES
A212: CRESOL, DINITRO-O-,4,6- | B212: 534-52-1 | C212: 3.3 | D212: G | E212: 9.3 | F212: G | G212: 330 | H212: G | I212: 930 | J212: G | K212: 3300 | L212: G | M212: 9300 | N212: G | O212: 18 | P212: G | Q212: 260 | R212: G | S212: 190000 | T212: C | U212: 0.33 | V212: 0.25 | W212: E | X212: 0.93 | Y212: 0.7 | Z212: E | AA212: 33 | AB212: 25 | AC212: E | AD212: 93 | AE212: 70 | AF212: E | AG212: 330 | AH212: 250 | AI212: E | AJ212: 930 | AK212: 700 | AL212: E | AM212: NA | AN212: NA | AO212: 0.0001 | AP212: 0 | AQ212: 0 | AR212: 0 | AS212: 257 | AU212: 150 | AY212: 312 | AZ212: 6.02 | BB212: NO
A213: CRESOL, M (METHYLPHENOL, 3-) | B213: 108-39-4 | C213: 2100 | D213: G | E213: 5800 | F213: G | G213: 210000 | H213: G | I213: 580000 | J213: G | K213: 2100000 | L213: G | M213: 2500000 | N213: S | O213: 10000 | P213: C | Q213: 10000 | R213: C | S213: 10000 | T213: C | U213: 210 | V213: 41 | W213: E | X213: 580 | Y213: 110 | Z213: E | AA213: 10000 | AB213: 4100 | AC213: E | AD213: 10000 | AE213: 10000 | AF213: C | AG213: 10000 | AH213: 10000 | AI213: C | AJ213: 10000 | AK213: 10000 | AL213: C | AM213: NA | AN213: NA | AO213: 0.05 | AP213: 0 | AQ213: 0 | AR213: 0 | AS213: 34.6 | AU213: 2500 | AX213: X | AY213: 202 | AZ213: 5.16 | BB213: NO
A214: CRESOL, O- (METHYLPHENOL, 2-) | B214: 95-48-7 | C214: 2100 | D214: G | E214: 5800 | F214: G | G214: 210000 | H214: G | I214: 580000 | J214: G | K214: 210000 | L214: G | M214: 580000 | N214: G | O214: 11000 | P214: G | Q214: 160000 | R214: G | S214: 190000 | T214: C | U214: 210 | V214: 35 | W214: E | X214: 580 | Y214: 96 | Z214: E | AA214: 21000 | AB214: 3500 | AC214: E | AD214: 58000 | AE214: 9600 | AF214: E | AG214: 21000 | AH214: 3500 | AI214: E | AJ214: 58000 | AK214: 9600 | AL214: E | AM214: NA | AN214: NA | AO214: 0.05 | AP214: 0 | AQ214: 0 | AR214: 0 | AS214: 22 | AT214: X | AU214: 2500 | AV214: 13000 | AW214: 14900 | AY214: 191 | AZ214: 18.07 | BB214: NO
... 1263 more rows
